Workbook

Sheet Wksh 1 - Market Experience
A1: Press TAB and directional arrow keys to read through the document. If macros are disabled, press and hold the ALT key and press the F, then I, and then N key. After that, select the Enable All Content option by pressing enter. (note that you can also press the C key to select "Enable All Content") Instructions can be found in cells K1 through K4. If screen reader fails to announce a cell after performing a dropdown selection, please press F2 and then ESC to force the screen reader to resume. | B1: Unified Rate Review v6.1 [assistive technology users, please reference cell A1 for instructions] | K1: To add a product to Worksheet 2 - Plan Product Info, select the Add Product button or Ctrl + Shift + P.
K2: To add a plan to Worksheet 2 - Plan Product Info, select the Add Plan button or Ctrl + Shift + L.
B3: Company Legal Name: | C3: Anthem Health Plans of Kentucky, Inc. | K3: To validate, select the Validate button or Ctrl + Shift + I.
B4: HIOS Issuer ID: | C4: 36239 | D4: State: | E4: KY | K4: To finalize, select the Finalize button or Ctrl + Shift + F.
B5: Effective Date of Rate Change(s): | C5: =MAX('Wksh 2 - Plan Product Info'!E19:CA19) -> 00:00:00 | D5: Market: | E5: Small Group
B8: Market Level Calculations (Same for all Plans)
B11: Section I: Experience Period Data
B12: Experience Period: | D12: 2023-01-01 | E12: to | F12: =EDATE(D12,12)-1 -> 12/31/2023
E13: Total | F13: PMPM
B14: Allowed Claims | E14: 196790764.6 | F14: =E14/E19 -> 714.5141
B15: Reinsurance | E15: 0 | F15: =E15/E19 -> 0
B16: Incurred Claims in Experience Period | E16: 162570402.1 | F16: =E16/E19 -> 590.2657
B17: Risk Adjustment | E17: 293308.63 | F17: =E17/E19 -> 1.065
B18: Experience Period Premium | E18: 192819928.2 | F18: =E18/E19 -> 700.0967
B19: Experience Period Member Months | E19: ='Wksh 2 - Plan Product Info'!D33 -> 275419
B21: Section II: Projections
D22: Year 1 Trend | F22: Year 2 Trend
B23: Benefit Category | C23: Experience Period Index Rate PMPM | D23: Cost | E23: Utilization | F23: Cost | G23: Utilization | H23: Trended EHB Allowed Claims PMPM
B24: Inpatient Hospital | C24: 124.5080745 | D24: 1.033210334 | E24: 1.028635579 | F24: 1.033210334 | G24: 1.028635579 | H24: =PRODUCT(C24:G24) -> 140.6365
B25: Outpatient Hospital | C25: 259.5233853 | D25: 1.033210334 | E25: 1.028635579 | F25: 1.033210334 | G25: 1.028635579 | H25: 293.1413
B26: Professional | C26: 134.2992857 | D26: 1.033210334 | E26: 1.028635579 | F26: 1.033210334 | G26: 1.028635579 | H26: 151.696
B27: Other Medical | C27: 7.104028735 | D27: 1.033210334 | E27: 1.028635579 | F27: 1.033210334 | G27: 1.028635579 | H27: 8.0243
B28: Capitation | C28: 0.02419540458 | D28: 1.00756016 | E28: 1 | F28: 1.00756016 | G28: 1 | H28: 0.0246
B29: Prescription Drug | C29: 182.4010303 | D29: 1.036656355 | E29: 1.0993351 | F29: 1.036656355 | G29: 1.0993351 | H29: 236.8957
B30: Total | C30: =SUM(C24:C29) -> 707.86 | H30: =SUM(H24:H29) -> 830.4184
B32: Morbidity Adjustment | F32: 1.039
B33: Demographic Shift | F33: 1.012
B34: Plan Design Changes | F34: 1.001
B35: Other | F35: 1.118964226
B36: Adjusted Trended EHB Allowed Claims PMPM for | D36: =IF(C5<>"",C5,"") -> 1/1/2025 | F36: =H30*PRODUCT(F32:F35) -> 978.01
B38: Manual EHB Allowed Claims PMPM | F38: 0
B39: Applied Credibility % | F39: 1
G41: Projected Period Totals
B42: Projected Index Rate for | D42: =IF(C5<>"",C5,"") -> 1/1/2025 | F42: =ROUND(F39*F36+(1-F39)*F38,2) -> 978.01 | G42: =F42*F48 -> 171254441.1
B43: Reinsurance | F43: 0 | G43: =F43*F48 -> 0
B44: Risk Adjustment Payment/Charge | F44: -0.5068790731 | G44: =F44*F48 -> -88757.0601
B45: Exchange User Fees | F45: 0 | G45: =F45*F46*F48 -> 0
B46: Market Adjusted Index Rate | F46: =(F42-F43-F44)/(1-F45) -> 978.5169 | G46: =F46*F48 -> 171343198.1
B48: Projected Member Months | F48: ='Wksh 2 - Plan Product Info'!D73 -> 175105
B50: Information Not Releasable to the Public Unless Authorized by Law: This information has not been publically disclosed and may be privileged and confidential. It is for internal government use only and must not be disseminated, distributed, or copied to persons not authorized to receive the information. Unauthorized disclosure may result in prosecution to the full extent of the law.

Sheet Wksh 2 - Plan Product Info
A1: Press TAB and directional arrow keys to read through the document. If macros are disabled, press and hold the ALT key and press the F, then I, and then N key. After that, select the Enable All Content option by pressing enter. (note that you can also press the C key to select "Enable All Content") Instructions can be found in cells P1 through P6. If screen reader fails to announce a cell after performing a dropdown selection, please press F2 and then ESC to force the screen reader to resume. | C1: Product-Plan Data Collection [assistive technology users, please reference cell A1 for instructions] | P1: To add a product to Worksheet 2 - Plan Product Info, select the Add Product button or Ctrl + Shift + P.
P2: To add a plan to Worksheet 2 - Plan Product Info, select the Add Plan button or Ctrl + Shift + L.
C3: Company Legal Name: | D3: =IF('Wksh 1 - Market Experience'!C3<>"", 'Wksh 1 - Market Experience'!C3,"") ->  | P3: To validate, select the Validate button or Ctrl + Shift + I.
C4: HIOS Issuer ID: | D4: =IF('Wksh 1 - Market Experience'!C4<>"", 'Wksh 1 - Market Experience'!C4,"") ->  | E4: State: | F4: =IF('Wksh 1 - Market Experience'!E4<>"",'Wksh 1 - Market Experience'!E4,"") ->  | P4: To finalize, select the Finalize button or Ctrl + Shift + F.
C5: Effective Date of Rate Change(s): | D5: =IF('Wksh 1 - Market Experience'!C5<>"", 'Wksh 1 - Market Experience'!C5,"") -> 00:00:00 | E5: Market: | F5: =IF('Wksh 1 - Market Experience'!E5<>"",'Wksh 1 - Market Experience'!E5,"") ->  | P5: To remove a product, navigate to the corresponding Product Name/Product ID field and select the Remove Product button or Ctrl + Shift + Q.
P6: To remove a plan, navigate to the corresponding Plan Name/Plan ID field and select the Remove Plan button or Ctrl + Shift + A.
C7: Product/Plan Level Calculations
B9: Field # | C9: Section I: General Product and Plan Information
B10: 1.1 | C10: Product Name | E10: Terminated Products | F10: PPO On Exchange | P10: PPO Off Exchange | AO10: HMO Off Exchange | BN10: HMO On Exchange | BX10: EPO Off Exchange
B11: 1.2 | C11: Product ID | E11: 36239KY047 | F11: 36239KY098 | P11: 36239KY099 | AO11: 36239KY117 | BN11: 36239KY118 | BX11: 36239KY120
B12: 1.3 | C12: Plan Name | E12: 2023 Experience | F12: Anthem Silver Blue Access PPO 5000EC/0%/6000 w/HSA (SHOP) | G12: Anthem Silver Blue Access PPO 3300EC/0%/5600 w/HSA (SHOP) | H12: Anthem Silver Blue Access PPO 6000/20%/8500 (SHOP) | I12: Anthem Silver Blue Access PPO 3500EC/0%/6500 w/HSA (SHOP) | J12: Anthem Gold Blue Access PPO 3000/20%/5500 (SHOP) | K12: Anthem Gold Blue Access PPO 650/20%/8500 (SHOP) | L12: Anthem Gold Blue Access PPO 1000/20%/7000 (SHOP) | M12: Anthem Gold Blue Access PPO 1500/20%/6000 (SHOP) | N12: Anthem Gold Blue Access PPO 2500/20%/5000 (SHOP) | O12: Anthem Gold Blue Access PPO 2000/20%/4500 (SHOP) | P12: Anthem Bronze Blue Access PPO 6500E/40%/7500 w/HSA | Q12: Anthem Bronze Blue Access PPO 8000EC/50%/9000 | R12: Anthem Bronze Blue Access PPO 8000E/0%/8000 w/HSA | S12: Anthem Silver Blue Access PPO 5000EC/0%/6000 w/HSA WH | T12: Anthem Silver Blue Access PPO 4000EC/0%/5500 w/HSA | U12: Anthem Silver Blue Access PPO 7000/20%/8500 | V12: Anthem Silver Blue Access PPO 3000/30%/7000 w/HSA | W12: Anthem Silver Blue Access PPO 4500E/30%/7000 w/HSA | X12: Anthem Silver Blue Access PPO 4500/20%/8500 | Y12: Anthem Silver Blue Access PPO 5500/20%/8000 | Z12: Anthem Silver Blue Access PPO 3500E/20%/7000 w/HSA | AA12: Anthem Silver Blue Access PPO 3000/6500 | AB12: Anthem Gold Blue Access PPO 1500/20%/6000 (Grp Conv) | AC12: Anthem Gold Blue Access PPO 1000/20%/7000 WH | AD12: Anthem Gold Blue Access PPO 1650/30%/4800 w/HSA | AE12: Anthem Gold Blue Access PPO 3000/20%/5500 WH | AF12: Anthem Gold Blue Access PPO 0/50%/8000 | AG12: Anthem Gold Blue Access PPO 2000/4500 | AH12: Anthem Gold Blue Access PPO 1000/5000 | AI12: Anthem Gold Blue Access PPO 2000/30%/5500 | AJ12: Anthem Gold Blue Access PPO 3000/30%/5400 | AK12: Anthem Platinum Blue Access PPO 0/10%/5500 | AL12: Anthem Platinum Blue Access PPO 250/10%/2500 | AM12: Anthem Platinum Blue Access PPO 500/0%/3500 | AN12: Anthem Silver Blue Access PPO 3000EC/0%/6250 w/HSA | AO12: Anthem Bronze Pathway HMO 6500E/40%/7500 w/HSA | AP12: Anthem Bronze Pathway HMO 8000EC/50%/9000 | AQ12: Anthem Bronze Pathway HMO 8000E/0%/8000 w/HSA | AR12: Anthem Silver Pathway HMO 3000/30%/7000 w/HSA | AS12: Anthem Silver Pathway HMO 4000EC/0%/5500 w/HSA | AT12: Anthem Silver Pathway HMO 5000EC/0%/6000 w/HSA WH | AU12: Anthem Silver Pathway HMO 4500E/30%/7000 w/HSA | AV12: Anthem Silver Pathway HMO 4500/20%/8500 | AW12: Anthem Silver Pathway HMO 5500/20%/8000 | AX12: Anthem Silver Pathway HMO 3500E/20%/7000 w/HSA | AY12: Anthem Silver Pathway HMO 7000/20%/8500 | AZ12: Anthem Silver Pathway HMO 3000/6500 | BA12: Anthem Gold Pathway HMO 0/50%/8000 | BB12: Anthem Gold Pathway HMO 1650/30%/4800 w/HSA | BC12: Anthem Gold Pathway HMO 3000/20%/5500 WH | BD12: Anthem Gold Pathway HMO 1000/20%/7000 WH | BE12: Anthem Gold Pathway HMO 2000/30%/5500 | BF12: Anthem Gold Pathway HMO 1000/5000 | BG12: Anthem Gold Pathway HMO 2000/4500 | BH12: Anthem Gold Pathway HMO 1500/20%/6000 (Grp Conv) | BI12: Anthem Gold Pathway HMO 3000/30%/5400 | BJ12: Anthem Platinum Pathway HMO 0/10%/5500 | BK12: Anthem Platinum Pathway HMO 250/10%/2500 | BL12: Anthem Platinum Pathway HMO 500/0%/3500 | BM12: Anthem Silver Pathway HMO 3000EC/0%/6250 w/HSA | BN12: Anthem Silver Pathway HMO 6000/20%/8500 (SHOP) | BO12: Anthem Silver Pathway HMO 3300EC/0%/5600 w/HSA (SHOP) | BP12: Anthem Silver Pathway HMO 3500EC/0%/6500 w/HSA (SHOP) | BQ12: Anthem Silver Pathway HMO 5000EC/0%/6000 w/HSA (SHOP) | BR12: Anthem Gold Pathway HMO 2500/20%/5000 (SHOP) | BS12: Anthem Gold Pathway HMO 2000/20%/4500 (SHOP) | BT12: Anthem Gold Pathway HMO 3000/20%/5500 (SHOP) | BU12: Anthem Gold Pathway HMO 1500/20%/6000 (SHOP) | BV12: Anthem Gold Pathway HMO 650/20%/8500 (SHOP) | BW12: Anthem Gold Pathway HMO 1000/20%/7000 (SHOP) | BX12: Anthem Link Gold Pathway EPO 1000/6000 | BY12: Anthem Link Silver Pathway EPO 5000EC/5750 w/HSA | BZ12: Anthem Link Bronze Pathway EPO 6000EC/7000 w/HSA | CA12: Anthem Link Platinum Pathway EPO 250/2500
B13: 1.4 | C13: Plan ID (Standard Component ID) | E13: 36239KY0470137 | F13: 36239KY0980054 | G13: 36239KY0980052 | H13: 36239KY0980051 | I13: 36239KY0980053 | J13: 36239KY0980050 | K13: 36239KY0980045 | L13: 36239KY0980046 | M13: 36239KY0980047 | N13: 36239KY0980049 | O13: 36239KY0980048 | P13: 36239KY0990273 | Q13: 36239KY0990238 | R13: 36239KY0990274 | S13: 36239KY0990265 | T13: 36239KY0990257 | U13: 36239KY0990220 | V13: 36239KY0990269 | W13: 36239KY0990272 | X13: 36239KY0990260 | Y13: 36239KY0990263 | Z13: 36239KY0990271 | AA13: 36239KY0990284 | AB13: 36239KY0990237 | AC13: 36239KY0990262 | AD13: 36239KY0990275 | AE13: 36239KY0990261 | AF13: 36239KY0990278 | AG13: 36239KY0990282 | AH13: 36239KY0990283 | AI13: 36239KY0990286 | AJ13: 36239KY0990285 | AK13: 36239KY0990281 | AL13: 36239KY0990190 | AM13: 36239KY0990242 | AN13: 36239KY0990266 | AO13: 36239KY1170129 | AP13: 36239KY1170073 | AQ13: 36239KY1170130 | AR13: 36239KY1170131 | AS13: 36239KY1170115 | AT13: 36239KY1170122 | AU13: 36239KY1170128 | AV13: 36239KY1170117 | AW13: 36239KY1170120 | AX13: 36239KY1170127 | AY13: 36239KY1170056 | AZ13: 36239KY1170138 | BA13: 36239KY1170136 | BB13: 36239KY1170125 | BC13: 36239KY1170119 | BD13: 36239KY1170118 | BE13: 36239KY1170141 | BF13: 36239KY1170139 | BG13: 36239KY1170137 | BH13: 36239KY1170142 | BI13: 36239KY1170140 | BJ13: 36239KY1170135 | BK13: 36239KY1170037 | BL13: 36239KY1170075 | BM13: 36239KY1170123 | BN13: 36239KY1180033 | BO13: 36239KY1180034 | BP13: 36239KY1180035 | BQ13: 36239KY1180036 | BR13: 36239KY1180031 | BS13: 36239KY1180030 | BT13: 36239KY1180032 | BU13: 36239KY1180037 | BV13: 36239KY1180028 | BW13: 36239KY1180029 | BX13: 36239KY1200005 | BY13: 36239KY1200002 | BZ13: 36239KY1200001 | CA13: 36239KY1200008
B14: 1.5 | C14: Metal | E14: Not Applicable | F14: Silver | G14: Silver | H14: Silver | I14: Silver | J14: Gold | K14: Gold | L14: Gold | M14: Gold | N14: Gold | O14: Gold | P14: Bronze | Q14: Bronze | R14: Bronze | S14: Silver | T14: Silver | U14: Silver | V14: Silver | W14: Silver | X14: Silver | Y14: Silver | Z14: Silver | AA14: Silver | AB14: Gold | AC14: Gold | AD14: Gold | AE14: Gold | AF14: Gold | AG14: Gold | AH14: Gold | AI14: Gold | AJ14: Gold | AK14: Platinum | AL14: Platinum | AM14: Platinum | AN14: Silver | AO14: Bronze | AP14: Bronze | AQ14: Bronze | AR14: Silver | AS14: Silver | AT14: Silver | AU14: Silver | AV14: Silver | AW14: Silver | AX14: Silver | AY14: Silver | AZ14: Silver | BA14: Gold | BB14: Gold | BC14: Gold | BD14: Gold | BE14: Gold | BF14: Gold | BG14: Gold | BH14: Gold | BI14: Gold | BJ14: Platinum | BK14: Platinum | BL14: Platinum | BM14: Silver | BN14: Silver | BO14: Silver | BP14: Silver | BQ14: Silver | BR14: Gold | BS14: Gold | BT14: Gold | BU14: Gold | BV14: Gold | BW14: Gold | BX14: Gold | BY14: Silver | BZ14: Bronze | CA14: Platinum
B15: 1.6 | C15: AV Metal Value | E15: 0 | F15: 0.69 | G15: 0.709 | H15: 0.703 | I15: 0.688 | J15: 0.793 | K15: 0.817 | L15: 0.813 | M15: 0.807 | N15: 0.804 | O15: 0.816 | P15: 0.633 | Q15: 0.602 | R15: 0.62 | S15: 0.69 | T15: 0.706 | U15: 0.703 | V15: 0.707 | W15: 0.681 | X15: 0.704 | Y15: 0.71 | Z15: 0.708 | AA15: 0.712 | AB15: 0.807 | AC15: 0.813 | AD15: 0.793 | AE15: 0.793 | AF15: 0.817 | AG15: 0.79 | AH15: 0.793 | AI15: 0.801 | AJ15: 0.788 | AK15: 0.916 | AL15: 0.912 | AM15: 0.902 | AN15: 0.689 | AO15: 0.633 | AP15: 0.602 | AQ15: 0.62 | AR15: 0.707 | AS15: 0.706 | AT15: 0.69 | AU15: 0.681 | AV15: 0.704 | AW15: 0.71 | AX15: 0.708 | AY15: 0.703 | AZ15: 0.712 | BA15: 0.817 | BB15: 0.793 | BC15: 0.793 | BD15: 0.813 | BE15: 0.801 | BF15: 0.793 | BG15: 0.79 | BH15: 0.807 | BI15: 0.788 | BJ15: 0.916 | BK15: 0.912 | BL15: 0.902 | BM15: 0.689 | BN15: 0.703 | BO15: 0.709 | BP15: 0.688 | BQ15: 0.69 | BR15: 0.804 | BS15: 0.816 | BT15: 0.793 | BU15: 0.807 | BV15: 0.817 | BW15: 0.813 | BX15: 0.773 | BY15: 0.692 | BZ15: 0.644 | CA15: 0.863
B16: 1.7 | C16: Plan Category | E16: Terminated | F16: Renewing | G16: Renewing | H16: Renewing | I16: Renewing | J16: Renewing | K16: Renewing | L16: Renewing | M16: Renewing | N16: Renewing | O16: Renewing | P16: Renewing | Q16: Renewing | R16: Renewing | S16: Renewing | T16: Renewing | U16: Renewing | V16: Renewing | W16: Renewing | X16: Renewing | Y16: Renewing | Z16: Renewing | AA16: New | AB16: Renewing | AC16: Renewing | AD16: Renewing | AE16: Renewing | AF16: Renewing | AG16: New | AH16: New | AI16: New | AJ16: New | AK16: Renewing | AL16: Renewing | AM16: Renewing | AN16: Terminated | AO16: Renewing | AP16: Renewing | AQ16: Renewing | AR16: Renewing | AS16: Renewing | AT16: Renewing | AU16: Renewing | AV16: Renewing | AW16: Renewing | AX16: Renewing | AY16: Renewing | AZ16: New | BA16: Renewing | BB16: Renewing | BC16: Renewing | BD16: Renewing | BE16: New | BF16: New | BG16: New | BH16: New | BI16: New | BJ16: Renewing | BK16: Renewing | BL16: Renewing | BM16: Terminated | BN16: Renewing | BO16: Renewing | BP16: Renewing | BQ16: Renewing | BR16: Renewing | BS16: Renewing | BT16: Renewing | BU16: Renewing | BV16: Renewing | BW16: Renewing | BX16: Terminated | BY16: Terminated | BZ16: Terminated | CA16: Terminated
B17: 1.8 | C17: Plan Type | E17: PPO | F17: PPO | G17: PPO | H17: PPO | I17: PPO | J17: PPO | K17: PPO | L17: PPO | M17: PPO | N17: PPO | O17: PPO | P17: PPO | Q17: PPO | R17: PPO | S17: PPO | T17: PPO | U17: PPO | V17: PPO | W17: PPO | X17: PPO | Y17: PPO | Z17: PPO | AA17: PPO | AB17: PPO | AC17: PPO | AD17: PPO | AE17: PPO | AF17: PPO | AG17: PPO | AH17: PPO | AI17: PPO | AJ17: PPO | AK17: PPO | AL17: PPO | AM17: PPO | AN17: PPO | AO17: HMO | AP17: HMO | AQ17: HMO | AR17: HMO | AS17: HMO | AT17: HMO | AU17: HMO | AV17: HMO | AW17: HMO | AX17: HMO | AY17: HMO | AZ17: HMO | BA17: HMO | BB17: HMO | BC17: HMO | BD17: HMO | BE17: HMO | BF17: HMO | BG17: HMO | BH17: HMO | BI17: HMO | BJ17: HMO | BK17: HMO | BL17: HMO | BM17: HMO | BN17: HMO | BO17: HMO | BP17: HMO | BQ17: HMO | BR17: HMO | BS17: HMO | BT17: HMO | BU17: HMO | BV17: HMO | BW17: HMO | BX17: EPO | BY17: EPO | BZ17: EPO | CA17: EPO
B18: 1.9 | C18: Exchange Plan? | E18: No | F18: Yes | G18: Yes | H18: Yes | I18: Yes | J18: Yes | K18: Yes | L18: Yes | M18: Yes | N18: Yes | O18: Yes | P18: No | Q18: No | R18: No | S18: No | T18: No | U18: No | V18: No | W18: No | X18: No | Y18: No | Z18: No | AA18: No | AB18: No | AC18: No | AD18: No | AE18: No | AF18: No | AG18: No | AH18: No | AI18: No | AJ18: No | AK18: No | AL18: No | AM18: No | AN18: No | AO18: No | AP18: No | AQ18: No | AR18: No | AS18: No | AT18: No | AU18: No | AV18: No | AW18: No | AX18: No | AY18: No | AZ18: No | BA18: No | BB18: No | BC18: No | BD18: No | BE18: No | BF18: No | BG18: No | BH18: No | BI18: No | BJ18: No | BK18: No | BL18: No | BM18: No | BN18: Yes | BO18: Yes | BP18: Yes | BQ18: Yes | BR18: Yes | BS18: Yes | BT18: Yes | BU18: Yes | BV18: Yes | BW18: Yes | BX18: No | BY18: No | BZ18: No | CA18: No
B19: 1.10 | C19: Effective Date of Proposed Rates | E19: 2025-01-01 | F19: 2025-01-01 | G19: 2025-01-01 | H19: 2025-01-01 | I19: 2025-01-01 | J19: 2025-01-01 | K19: 2025-01-01 | L19: 2025-01-01 | M19: 2025-01-01 | N19: 2025-01-01 | O19: 2025-01-01 | P19: 2025-01-01 | Q19: 2025-01-01 | R19: 2025-01-01 | S19: 2025-01-01 | T19: 2025-01-01 | U19: 2025-01-01 | V19: 2025-01-01 | W19: 2025-01-01 | X19: 2025-01-01 | Y19: 2025-01-01 | Z19: 2025-01-01 | AA19: 2025-01-01 | AB19: 2025-01-01 | AC19: 2025-01-01 | AD19: 2025-01-01 | AE19: 2025-01-01 | AF19: 2025-01-01 | AG19: 2025-01-01 | AH19: 2025-01-01 | AI19: 2025-01-01 | AJ19: 2025-01-01 | AK19: 2025-01-01 | AL19: 2025-01-01 | AM19: 2025-01-01 | AN19: 2025-01-01 | AO19: 2025-01-01 | AP19: 2025-01-01 | AQ19: 2025-01-01 | AR19: 2025-01-01 | AS19: 2025-01-01 | AT19: 2025-01-01 | AU19: 2025-01-01 | AV19: 2025-01-01 | AW19: 2025-01-01 | AX19: 2025-01-01 | AY19: 2025-01-01 | AZ19: 2025-01-01 | BA19: 2025-01-01 | BB19: 2025-01-01 | BC19: 2025-01-01 | BD19: 2025-01-01 | BE19: 2025-01-01 | BF19: 2025-01-01 | BG19: 2025-01-01 | BH19: 2025-01-01 | BI19: 2025-01-01 | BJ19: 2025-01-01 | BK19: 2025-01-01 | BL19: 2025-01-01 | BM19: 2025-01-01 | BN19: 2025-01-01 | BO19: 2025-01-01 | BP19: 2025-01-01 | BQ19: 2025-01-01 | BR19: 2025-01-01 | BS19: 2025-01-01 | BT19: 2025-01-01 | BU19: 2025-01-01 | BV19: 2025-01-01 | BW19: 2025-01-01 | BX19: 2025-01-01 | BY19: 2025-01-01 | BZ19: 2025-01-01 | CA19: 2025-01-01
B20: 1.11 | C20: Cumulative Rate Change % (over 12 mos prior) | E20: 0 | F20: 0.1901 | G20: 0.1719 | H20: 0.1643 | I20: 0.1713 | J20: 0.1732 | K20: 0.1629 | L20: 0.1548 | M20: 0.1655 | N20: 0.1726 | O20: 0.1646 | P20: 0 | Q20: 0.2412 | R20: 0.2394 | S20: 0.1847 | T20: 0.1856 | U20: 0.1682 | V20: 0.2448 | W20: 0 | X20: 0.1599 | Y20: 0.1568 | Z20: 0.16 | AA20: 0 | AB20: 0.157 | AC20: 0.1687 | AD20: 0.1949 | AE20: 0.1733 | AF20: 0.1728 | AG20: 0 | AH20: 0 | AI20: 0 | AJ20: 0 | AK20: 0.151 | AL20: 0.1594 | AM20: 0.1512 | AN20: 0 | AO20: 0 | AP20: 0.2349 | AQ20: 0 | AR20: 0.2547 | AS20: 0.1816 | AT20: 0.1941 | AU20: 0 | AV20: 0.1581 | AW20: 0.1347 | AX20: 0 | AY20: 0.1994 | AZ20: 0 | BA20: 0 | BB20: 0.1926 | BC20: 0.181 | BD20: 0 | BE20: 0 | BF20: 0 | BG20: 0 | BH20: 0 | BI20: 0 | BJ20: 0 | BK20: 0.1793 | BL20: 0.1184 | BM20: 0 | BN20: 0.1802 | BO20: 0.1692 | BP20: 0.2193 | BQ20: 0.181 | BR20: 0.1707 | BS20: 0.1666 | BT20: 0.183 | BU20: 0.1608 | BV20: 0.1496 | BW20: 0.1547 | BX20: 0 | BY20: 0 | BZ20: 0 | CA20: 0
B21: 1.12 | C21: Product Rate Increase % | E21: =IF(SUMPRODUCT((E16:E16="Renewing")*((E14:E14="Platinum")+(E14:E14="Gold")+(E14:E14="Silver")+(E14:E14="Bronze")+(E14:E14="Catastrophic")))=0, 0, ROUND(ROUND(SUMPRODUCT(1+E20:E20,E34:E34,E35:E35,--(E16:E16="Renewing")*((E14:E14="Platinum")+(E14:E14="Gold")+(E14:E14="Silver")+(E14:E14="Bronze")+(E14:E14="Catastrophic")))/SUMPRODUCT(E34:E34,E35:E35,--(E16:E16="Renewing")*((E14:E14="Platinum")+(E14:E14="Gold")+(E14:E14="Silver")+(E14:E14="Bronze")+(E14:E14="Catastrophic"))), 4)-1, 4)) -> 0 | F21: =IF(SUMPRODUCT((F16:O16="Renewing")*((F14:O14="Platinum")+(F14:O14="Gold")+(F14:O14="Silver")+(F14:O14="Bronze")+(F14:O14="Catastrophic")))=0, 0, ROUND(ROUND(SUMPRODUCT(1+F20:O20,F34:O34,F35:O35,--(F16:O16="Renewing")*((F14:O14="Platinum")+(F14:O14="Gold")+(F14:O14="Silver")+(F14:O14="Bronze")+(F14:O14="Catastrophic")))/SUMPRODUCT(F34:O34,F35:O35,--(F16:O16="Renewing")*((F14:O14="Platinum")+(F14:O14="Gold")+(F14:O14="Silver")+(F14:O14="Bronze")+(F14:O14="Catastrophic"))), 4)-1, 4)) -> 0 | P21: =IF(SUMPRODUCT((P16:AN16="Renewing")*((P14:AN14="Platinum")+(P14:AN14="Gold")+(P14:AN14="Silver")+(P14:AN14="Bronze")+(P14:AN14="Catastrophic")))=0, 0, ROUND(ROUND(SUMPRODUCT(1+P20:AN20,P34:AN34,P35:AN35,--(P16:AN16="Renewing")*((P14:AN14="Platinum")+(P14:AN14="Gold")+(P14:AN14="Silver")+(P14:AN14="Bronze")+(P14:AN14="Catastrophic")))/SUMPRODUCT(P34:AN34,P35:AN35,--(P16:AN16="Renewing")*((P14:AN14="Platinum")+(P14:AN14="Gold")+(P14:AN14="Silver")+(P14:AN14="Bronze")+(P14:AN14="Catastrophic"))), 4)-1, 4)) -> 0 | AO21: =IF(SUMPRODUCT((AO16:BM16="Renewing")*((AO14:BM14="Platinum")+(AO14:BM14="Gold")+(AO14:BM14="Silver")+(AO14:BM14="Bronze")+(AO14:BM14="Catastrophic")))=0, 0, ROUND(ROUND(SUMPRODUCT(1+AO20:BM20,AO34:BM34,AO35:BM35,--(AO16:BM16="Renewing")*((AO14:BM14="Platinum")+(AO14:BM14="Gold")+(AO14:BM14="Silver")+(AO14:BM14="Bronze")+(AO14:BM14="Catastrophic")))/SUMPRODUCT(AO34:BM34,AO35:BM35,--(AO16:BM16="Renewing")*((AO14:BM14="Platinum")+(AO14:BM14="Gold")+(AO14:BM14="Silver")+(AO14:BM14="Bronze")+(AO14:BM14="Catastrophic"))), 4)-1, 4)) -> 0 | BN21: =IF(SUMPRODUCT((BN16:BW16="Renewing")*((BN14:BW14="Platinum")+(BN14:BW14="Gold")+(BN14:BW14="Silver")+(BN14:BW14="Bronze")+(BN14:BW14="Catastrophic")))=0, 0, ROUND(ROUND(SUMPRODUCT(1+BN20:BW20,BN34:BW34,BN35:BW35,--(BN16:BW16="Renewing")*((BN14:BW14="Platinum")+(BN14:BW14="Gold")+(BN14:BW14="Silver")+(BN14:BW14="Bronze")+(BN14:BW14="Catastrophic")))/SUMPRODUCT(BN34:BW34,BN35:BW35,--(BN16:BW16="Renewing")*((BN14:BW14="Platinum")+(BN14:BW14="Gold")+(BN14:BW14="Silver")+(BN14:BW14="Bronze")+(BN14:BW14="Catastrophic"))), 4)-1, 4)) -> 0 | BX21: =IF(SUMPRODUCT((BX16:CA16="Renewing")*((BX14:CA14="Platinum")+(BX14:CA14="Gold")+(BX14:CA14="Silver")+(BX14:CA14="Bronze")+(BX14:CA14="Catastrophic")))=0, 0, ROUND(ROUND(SUMPRODUCT(1+BX20:CA20,BX34:CA34,BX35:CA35,--(BX16:CA16="Renewing")*((BX14:CA14="Platinum")+(BX14:CA14="Gold")+(BX14:CA14="Silver")+(BX14:CA14="Bronze")+(BX14:CA14="Catastrophic")))/SUMPRODUCT(BX34:CA34,BX35:CA35,--(BX16:CA16="Renewing")*((BX14:CA14="Platinum")+(BX14:CA14="Gold")+(BX14:CA14="Silver")+(BX14:CA14="Bronze")+(BX14:CA14="Catastrophic"))), 4)-1, 4)) -> 0
B22: 1.13 | C22: Submission Level Rate Increase % | E22: =IF(SUMPRODUCT((E16:CA16="Renewing")*((E14:CA14="Platinum")+(E14:CA14="Gold")+(E14:CA14="Silver")+(E14:CA14="Bronze")+(E14:CA14="Catastrophic")))=0, 0, ROUND(ROUND(SUMPRODUCT(1+E20:CA20,E34:CA34,E35:CA35,--(E16:CA16="Renewing")*((E14:CA14="Platinum")+(E14:CA14="Gold")+(E14:CA14="Silver")+(E14:CA14="Bronze")+(E14:CA14="Catastrophic")))/SUMPRODUCT(E34:CA34,E35:CA35,--(E16:CA16="Renewing")*((E14:CA14="Platinum")+(E14:CA14="Gold")+(E14:CA14="Silver")+(E14:CA14="Bronze")+(E14:CA14="Catastrophic"))), 4)-1, 4)) -> 0
A24: Worksheet 1 Totals | C24: Section II: Experience Period and Current Plan Level Information
B25: 2.1 | C25: Plan ID (Standard Component ID) | D25: Total | E25: =E13 -> 0 | F25: 0 | G25: 0 | H25: 0 | I25: 0 | J25: 0 | K25: 0 | L25: 0 | M25: 0 | N25: 0 | O25: 0 | P25: 0 | Q25: 0 | R25: 0 | S25: 0 | T25: 0 | U25: 0 | V25: 0 | W25: 0 | X25: 0 | Y25: 0 | Z25: 0 | AA25: 0 | AB25: 0 | AC25: 0 | AD25: 0 | AE25: 0 | AF25: 0 | AG25: 0 | AH25: 0 | AI25: 0 | AJ25: 0 | AK25: =AK13 -> 0 | AL25: 0 | AM25: 0 | AN25: 0 | AO25: 0 | AP25: 0 | AQ25: 0 | AR25: 0 | AS25: 0 | AT25: 0 | AU25: 0 | AV25: 0 | AW25: 0 | AX25: 0 | AY25: 0 | AZ25: 0 | BA25: 0 | BB25: 0 | BC25: 0 | BD25: 0 | BE25: 0 | BF25: 0 | BG25: 0 | BH25: 0 | BI25: 0 | BJ25: 0 | BK25: 0 | BL25: 0 | BM25: 0 | BN25: 0 | BO25: 0 | BP25: 0 | BQ25: =BQ13 -> 0 | BR25: 0 | BS25: 0 | BT25: 0 | BU25: 0 | BV25: 0 | BW25: 0 | BX25: 0 | BY25: 0 | BZ25: 0 | CA25: 0
A26: ='Wksh 1 - Market Experience'!E14 -> 0 | B26: 2.2 | C26: Allowed Claims | D26: =SUM(E26:XFD26) -> 196078770.1 | E26: =74994602.67 -> 0 | F26: =7361924.28 -> 0 | G26: =4020450.83 -> 0 | H26: =3267525.01 -> 0 | I26: =3621468.29 -> 0 | J26: =14873042.51 -> 0 | K26: =6300447.34 -> 0 | L26: =11166711.17 -> 0 | M26: =13377532.53 -> 0 | N26: =9040100.3 -> 0 | O26: =14407724.86 -> 0 | P26: =0 -> 0 | Q26: =721123.63 -> 0 | R26: =0 -> 0 | S26: =353720.52 -> 0 | T26: =5022710.94 -> 0 | U26: =2197454.11 -> 0 | V26: =0 -> 0 | W26: =0 -> 0 | X26: =5722905.37 -> 0 | Y26: =216292.68 -> 0 | Z26: =0 -> 0 | AA26: =0 -> 0 | AB26: =163781.97 -> 0 | AC26: =74818.85 -> 0 | AD26: =0 -> 0 | AE26: =85325.92 -> 0 | AF26: =0 -> 0 | AG26: =0 -> 0 | AH26: =0 -> 0 | AI26: =0 -> 0 | AJ26: =0 -> 0 | AK26: =0 -> 0 | AL26: =8320589.68 -> 0 | AM26: =2923056.7 -> 0 | AN26: =643280 -> 0 | AO26: =0 -> 0 | AP26: =86388.78 -> 0 | AQ26: =0 -> 0 | AR26: =0 -> 0 | AS26: =247651.68 -> 0 | AT26: =23676.48 -> 0 | AU26: =0 -> 0 | AV26: =381919.65 -> 0 | AW26: =134.86 -> 0 | AX26: =0 -> 0 | AY26: =35784.67 -> 0 | AZ26: =0 -> 0 | BA26: =0 -> 0 | BB26: =0 -> 0 | BC26: =168331.27 -> 0 | BD26: =0 -> 0 | BE26: =0 -> 0 | BF26: =0 -> 0 | BG26: =0 -> 0 | BH26: =0 -> 0 | BI26: =0 -> 0 | BJ26: =0 -> 0 | BK26: =78400.39 -> 0 | BL26: =75411.2 -> 0 | BM26: =25166.53 -> 0 | BN26: =79022.92 -> 0 | BO26: =139003.92 -> 0 | BP26: =26517.62 -> 0 | BQ26: =201539.38 -> 0 | BR26: =665274.62 -> 0 | BS26: =162537.33 -> 0 | BT26: =3280625.89 -> 0 | BU26: =632787.03 -> 0 | BV26: =531888.28 -> 0 | BW26: =151262.99 -> 0 | BX26: =70894.34 -> 0 | BY26: =74584.07 -> 0 | BZ26: =-539.66 -> 0 | CA26: =63915.74 -> 0
A27: ='Wksh 1 - Market Experience'!E15 -> 0 | B27: 2.3 | C27: Reinsurance | D27: =SUM(E27:XFD27) -> 0 | E27: =0 -> 0 | F27: =0 -> 0 | G27: =0 -> 0 | H27: =0 -> 0 | I27: =0 -> 0 | J27: =0 -> 0 | K27: =0 -> 0 | L27: =0 -> 0 | M27: =0 -> 0 | N27: =0 -> 0 | O27: =0 -> 0 | P27: =0 -> 0 | Q27: =0 -> 0 | R27: =0 -> 0 | S27: =0 -> 0 | T27: =0 -> 0 | U27: =0 -> 0 | V27: =0 -> 0 | W27: =0 -> 0 | X27: =0 -> 0 | Y27: =0 -> 0 | Z27: =0 -> 0 | AA27: =0 -> 0 | AB27: =0 -> 0 | AC27: =0 -> 0 | AD27: =0 -> 0 | AE27: =0 -> 0 | AF27: =0 -> 0 | AG27: =0 -> 0 | AH27: =0 -> 0 | AI27: =0 -> 0 | AJ27: =0 -> 0 | AK27: =0 -> 0 | AL27: =0 -> 0 | AM27: =0 -> 0 | AN27: =0 -> 0 | AO27: =0 -> 0 | AP27: =0 -> 0 | AQ27: =0 -> 0 | AR27: =0 -> 0 | AS27: =0 -> 0 | AT27: =0 -> 0 | AU27: =0 -> 0 | AV27: =0 -> 0 | AW27: =0 -> 0 | AX27: =0 -> 0 | AY27: =0 -> 0 | AZ27: =0 -> 0 | BA27: =0 -> 0 | BB27: =0 -> 0 | BC27: =0 -> 0 | BD27: =0 -> 0 | BE27: =0 -> 0 | BF27: =0 -> 0 | BG27: =0 -> 0 | BH27: =0 -> 0 | BI27: =0 -> 0 | BJ27: =0 -> 0 | BK27: =0 -> 0 | BL27: =0 -> 0 | BM27: =0 -> 0 | BN27: =0 -> 0 | BO27: =0 -> 0 | BP27: =0 -> 0 | BQ27: =0 -> 0 | BR27: =0 -> 0 | BS27: =0 -> 0 | BT27: =0 -> 0 | BU27: =0 -> 0 | BV27: =0 -> 0 | BW27: =0 -> 0 | BX27: =0 -> 0 | BY27: =0 -> 0 | BZ27: =0 -> 0 | CA27: =0 -> 0
B28: 2.4 | C28: Member Cost Sharing | D28: =SUM(E28:XFD28) -> 34182173.37 | E28: =13120560.45 -> 0 | F28: =1475255.86 -> 0 | G28: =1147056.66 -> 0 | H28: =688134.89 -> 0 | I28: =629193.78 -> 0 | J28: =2847803.33 -> 0 | K28: =1008320.43 -> 0 | L28: =2033266.92 -> 0 | M28: =2206174.42 -> 0 | N28: =1534215.59 -> 0 | O28: =2303379.6 -> 0 | P28: =0 -> 0 | Q28: =127123.85 -> 0 | R28: =0 -> 0 | S28: =54224.62 -> 0 | T28: =859200.35 -> 0 | U28: =537339.33 -> 0 | V28: =0 -> 0 | W28: =0 -> 0 | X28: =1201423.33 -> 0 | Y28: =103716.74 -> 0 | Z28: =0 -> 0 | AA28: =0 -> 0 | AB28: =41315.45 -> 0 | AC28: =12096.39 -> 0 | AD28: =0 -> 0 | AE28: =23284.13 -> 0 | AF28: =0 -> 0 | AG28: =0 -> 0 | AH28: =0 -> 0 | AI28: =0 -> 0 | AJ28: =0 -> 0 | AK28: =0 -> 0 | AL28: =481100.2 -> 0 | AM28: =305990.85 -> 0 | AN28: =125986.94 -> 0 | AO28: =0 -> 0 | AP28: =47444.55 -> 0 | AQ28: =0 -> 0 | AR28: =0 -> 0 | AS28: =99385.61 -> 0 | AT28: =11313.73 -> 0 | AU28: =0 -> 0 | AV28: =121914.54 -> 0 | AW28: =457.47 -> 0 | AX28: =0 -> 0 | AY28: =19728.19 -> 0 | AZ28: =0 -> 0 | BA28: =0 -> 0 | BB28: =0 -> 0 | BC28: =45648.67 -> 0 | BD28: =0 -> 0 | BE28: =0 -> 0 | BF28: =0 -> 0 | BG28: =0 -> 0 | BH28: =0 -> 0 | BI28: =0 -> 0 | BJ28: =0 -> 0 | BK28: =1642.46 -> 0 | BL28: =4056.98 -> 0 | BM28: =20516.07 -> 0 | BN28: =29713.94 -> 0 | BO28: =48172.51 -> 0 | BP28: =16570.77 -> 0 | BQ28: =57257.99 -> 0 | BR28: =100102.23 -> 0 | BS28: =44691.93 -> 0 | BT28: =417120.57 -> 0 | BU28: =110781.83 -> 0 | BV28: =53464.33 -> 0 | BW28: =39490.53 -> 0 | BX28: =12075.75 -> 0 | BY28: =5823.86 -> 0 | BZ28: =670.44 -> 0 | CA28: =7964.31 -> 0
B29: 2.5 | C29: Cost Sharing Reduction | D29: =SUM(E29:XFD29) -> 0 | E29: =0 -> 0 | F29: =0 -> 0 | G29: =0 -> 0 | H29: =0 -> 0 | I29: =0 -> 0 | J29: =0 -> 0 | K29: =0 -> 0 | L29: =0 -> 0 | M29: =0 -> 0 | N29: =0 -> 0 | O29: =0 -> 0 | P29: =0 -> 0 | Q29: =0 -> 0 | R29: =0 -> 0 | S29: =0 -> 0 | T29: =0 -> 0 | U29: =0 -> 0 | V29: =0 -> 0 | W29: =0 -> 0 | X29: =0 -> 0 | Y29: =0 -> 0 | Z29: =0 -> 0 | AA29: =0 -> 0 | AB29: =0 -> 0 | AC29: =0 -> 0 | AD29: =0 -> 0 | AE29: =0 -> 0 | AF29: =0 -> 0 | AG29: =0 -> 0 | AH29: =0 -> 0 | AI29: =0 -> 0 | AJ29: =0 -> 0 | AK29: =0 -> 0 | AL29: =0 -> 0 | AM29: =0 -> 0 | AN29: =0 -> 0 | AO29: =0 -> 0 | AP29: =0 -> 0 | AQ29: =0 -> 0 | AR29: =0 -> 0 | AS29: =0 -> 0 | AT29: =0 -> 0 | AU29: =0 -> 0 | AV29: =0 -> 0 | AW29: =0 -> 0 | AX29: =0 -> 0 | AY29: =0 -> 0 | AZ29: =0 -> 0 | BA29: =0 -> 0 | BB29: =0 -> 0 | BC29: =0 -> 0 | BD29: =0 -> 0 | BE29: =0 -> 0 | BF29: =0 -> 0 | BG29: =0 -> 0 | BH29: =0 -> 0 | BI29: =0 -> 0 | BJ29: =0 -> 0 | BK29: =0 -> 0 | BL29: =0 -> 0 | BM29: =0 -> 0 | BN29: =0 -> 0 | BO29: =0 -> 0 | BP29: =0 -> 0 | BQ29: =0 -> 0 | BR29: =0 -> 0 | BS29: =0 -> 0 | BT29: =0 -> 0 | BU29: =0 -> 0 | BV29: =0 -> 0 | BW29: =0 -> 0 | BX29: =0 -> 0 | BY29: =0 -> 0 | BZ29: =0 -> 0 | CA29: =0 -> 0
A30: ='Wksh 1 - Market Experience'!E16 -> 0 | B30: 2.6 | C30: Incurred Claims | D30: =D26-D27-D28-D29 -> 161896596.8 | E30: 0 | F30: 0 | G30: 0 | H30: 0 | I30: 0 | J30: 0 | K30: 0 | L30: 0 | M30: 0 | N30: 0 | O30: 0 | P30: 0 | Q30: 0 | R30: 0 | S30: 0 | T30: 0 | U30: 0 | V30: 0 | W30: 0 | X30: 0 | Y30: 0 | Z30: 0 | AA30: 0 | AB30: 0 | AC30: 0 | AD30: 0 | AE30: 0 | AF30: 0 | AG30: 0 | AH30: 0 | AI30: 0 | AJ30: =AJ26-AJ27-AJ28-AJ29 -> 0 | AK30: 0 | AL30: 0 | AM30: 0 | AN30: 0 | AO30: 0 | AP30: 0 | AQ30: 0 | AR30: 0 | AS30: 0 | AT30: 0 | AU30: 0 | AV30: 0 | AW30: 0 | AX30: 0 | AY30: 0 | AZ30: 0 | BA30: 0 | BB30: 0 | BC30: 0 | BD30: 0 | BE30: 0 | BF30: 0 | BG30: 0 | BH30: 0 | BI30: 0 | BJ30: 0 | BK30: 0 | BL30: 0 | BM30: 0 | BN30: 0 | BO30: 0 | BP30: =BP26-BP27-BP28-BP29 -> 0 | BQ30: 0 | BR30: 0 | BS30: 0 | BT30: 0 | BU30: 0 | BV30: 0 | BW30: 0 | BX30: 0 | BY30: 0 | BZ30: 0 | CA30: 0
A31: ='Wksh 1 - Market Experience'!E17 -> 0 | B31: 2.7 | C31: Risk Adjustment Transfer Amount | D31: =SUM(E31:XFD31) -> 293308.63 | E31: =0 -> 0 | F31: =1256115.26 -> 0 | G31: =-327401.48 -> 0 | H31: =250791.53 -> 0 | I31: =46024.49 -> 0 | J31: =-198503.68 -> 0 | K31: =-585996.91 -> 0 | L31: =-479038.62 -> 0 | M31: =-129447.89 -> 0 | N31: =-18983.3 -> 0 | O31: =-151830.58 -> 0 | P31: =0 -> 0 | Q31: =-31094.3 -> 0 | R31: =0 -> 0 | S31: =261840.87 -> 0 | T31: =167148.54 -> 0 | U31: =-392029.67 -> 0 | V31: =0 -> 0 | W31: =0 -> 0 | X31: =-137299.2 -> 0 | Y31: =-165531.93 -> 0 | Z31: =0 -> 0 | AA31: =0 -> 0 | AB31: =-71752.64 -> 0 | AC31: =-24867.79 -> 0 | AD31: =0 -> 0 | AE31: =-11261.02 -> 0 | AF31: =0 -> 0 | AG31: =0 -> 0 | AH31: =0 -> 0 | AI31: =0 -> 0 | AJ31: =0 -> 0 | AK31: =0 -> 0 | AL31: =1281351.42 -> 0 | AM31: =-343343.06 -> 0 | AN31: =262105.8 -> 0 | AO31: =0 -> 0 | AP31: =-98671.27 -> 0 | AQ31: =0 -> 0 | AR31: =0 -> 0 | AS31: =-217914.38 -> 0 | AT31: =-32576.67 -> 0 | AU31: =0 -> 0 | AV31: =-223874.38 -> 0 | AW31: =-3697.26 -> 0 | AX31: =0 -> 0 | AY31: =-146114.27 -> 0 | AZ31: =0 -> 0 | BA31: =0 -> 0 | BB31: =0 -> 0 | BC31: =15193.49 -> 0 | BD31: =0 -> 0 | BE31: =0 -> 0 | BF31: =0 -> 0 | BG31: =0 -> 0 | BH31: =0 -> 0 | BI31: =0 -> 0 | BJ31: =0 -> 0 | BK31: =64278.45 -> 0 | BL31: =-7886.75 -> 0 | BM31: =-65563.5 -> 0 | BN31: =-115508.43 -> 0 | BO31: =-1132.22 -> 0 | BP31: =41601.63 -> 0 | BQ31: =-13386.67 -> 0 | BR31: =64428.32 -> 0 | BS31: =-104477.37 -> 0 | BT31: =566854.46 -> 0 | BU31: =-18046.17 -> 0 | BV31: =268120.64 -> 0 | BW31: =-53291.74 -> 0 | BX31: =-76671.99 -> 0 | BY31: =54499.47 -> 0 | BZ31: =-18423.05 -> 0 | CA31: =-41427.55 -> 0
A32: ='Wksh 1 - Market Experience'!E18 -> 0 | B32: 2.8 | C32: Premium | D32: =SUM(E32:XFD32) -> 192767133.4 | E32: =84135086.1 -> 0 | F32: =5399873 -> 0 | G32: =4525060.25 -> 0 | H32: =2716599.23 -> 0 | I32: =2259316.83 -> 0 | J32: =13368044.87 -> 0 | K32: =6470865.97 -> 0 | L32: =11486032.67 -> 0 | M32: =13071348.71 -> 0 | N32: =7398135.13 -> 0 | O32: =13804604.74 -> 0 | P32: =0 -> 0 | Q32: =477159.62 -> 0 | R32: =0 -> 0 | S32: =170837.22 -> 0 | T32: =3620494.66 -> 0 | U32: =2110736.02 -> 0 | V32: =0 -> 0 | W32: =0 -> 0 | X32: =5010606.71 -> 0 | Y32: =407826.71 -> 0 | Z32: =0 -> 0 | AA32: =0 -> 0 | AB32: =188715.41 -> 0 | AC32: =66117.58 -> 0 | AD32: =0 -> 0 | AE32: =102169.12 -> 0 | AF32: =0 -> 0 | AG32: =0 -> 0 | AH32: =0 -> 0 | AI32: =0 -> 0 | AJ32: =0 -> 0 | AK32: =0 -> 0 | AL32: =5716727.53 -> 0 | AM32: =3753369.97 -> 0 | AN32: =481065.73 -> 0 | AO32: =0 -> 0 | AP32: =163794.98 -> 0 | AQ32: =0 -> 0 | AR32: =0 -> 0 | AS32: =388606.81 -> 0 | AT32: =50695.85 -> 0 | AU32: =0 -> 0 | AV32: =473532.84 -> 0 | AW32: =5109.74 -> 0 | AX32: =0 -> 0 | AY32: =189319.77 -> 0 | AZ32: =0 -> 0 | BA32: =0 -> 0 | BB32: =0 -> 0 | BC32: =134174.42 -> 0 | BD32: =0 -> 0 | BE32: =0 -> 0 | BF32: =0 -> 0 | BG32: =0 -> 0 | BH32: =0 -> 0 | BI32: =0 -> 0 | BJ32: =0 -> 0 | BK32: =221700.84 -> 0 | BL32: =41072.01 -> 0 | BM32: =106086.54 -> 0 | BN32: =165545.99 -> 0 | BO32: =222167.33 -> 0 | BP32: =54189.09 -> 0 | BQ32: =186506.96 -> 0 | BR32: =444786.78 -> 0 | BS32: =246296.93 -> 0 | BT32: =1633123.48 -> 0 | BU32: =559547.06 -> 0 | BV32: =193044.65 -> 0 | BW32: =286798.78 -> 0 | BX32: =132169.21 -> 0 | BY32: =23816.05 -> 0 | BZ32: =24729.73 -> 0 | CA32: =79523.81 -> 0
A33: ='Wksh 1 - Market Experience'!E19 -> 0 | B33: 2.9 | C33: Experience Period Member Months | D33: =SUM(E33:XFD33) -> 275419 | E33: =124122 -> 0 | F33: =8902 -> 0 | G33: =7151 -> 0 | H33: =3988 -> 0 | I33: =3580 -> 0 | J33: =18425 -> 0 | K33: =8423 -> 0 | L33: =14925 -> 0 | M33: =16867 -> 0 | N33: =10545 -> 0 | O33: =18300 -> 0 | P33: =0 -> 0 | Q33: =853 -> 0 | R33: =0 -> 0 | S33: =324 -> 0 | T33: =5639 -> 0 | U33: =2956 -> 0 | V33: =0 -> 0 | W33: =0 -> 0 | X33: =7784 -> 0 | Y33: =589 -> 0 | Z33: =0 -> 0 | AA33: =0 -> 0 | AB33: =261 -> 0 | AC33: =111 -> 0 | AD33: =0 -> 0 | AE33: =177 -> 0 | AF33: =0 -> 0 | AG33: =0 -> 0 | AH33: =0 -> 0 | AI33: =0 -> 0 | AJ33: =0 -> 0 | AK33: =0 -> 0 | AL33: =6595 -> 0 | AM33: =4227 -> 0 | AN33: =737 -> 0 | AO33: =0 -> 0 | AP33: =296 -> 0 | AQ33: =0 -> 0 | AR33: =0 -> 0 | AS33: =657 -> 0 | AT33: =101 -> 0 | AU33: =0 -> 0 | AV33: =786 -> 0 | AW33: =12 -> 0 | AX33: =0 -> 0 | AY33: =312 -> 0 | AZ33: =0 -> 0 | BA33: =0 -> 0 | BB33: =0 -> 0 | BC33: =205 -> 0 | BD33: =0 -> 0 | BE33: =0 -> 0 | BF33: =0 -> 0 | BG33: =0 -> 0 | BH33: =0 -> 0 | BI33: =0 -> 0 | BJ33: =0 -> 0 | BK33: =340 -> 0 | BL33: =44 -> 0 | BM33: =239 -> 0 | BN33: =282 -> 0 | BO33: =383 -> 0 | BP33: =129 -> 0 | BQ33: =399 -> 0 | BR33: =763 -> 0 | BS33: =404 -> 0 | BT33: =2629 -> 0 | BU33: =890 -> 0 | BV33: =224 -> 0 | BW33: =439 -> 0 | BX33: =212 -> 0 | BY33: =36 -> 0 | BZ33: =45 -> 0 | CA33: =111 -> 0
B34: 2.10 | C34: Current Enrollment | D34: =SUM(E34:XFD34) -> 14266 | E34: =0 -> 0 | F34: =686 -> 0 | G34: =648 -> 0 | H34: =301 -> 0 | I34: =343 -> 0 | J34: =1796 -> 0 | K34: =598 -> 0 | L34: =1227 -> 0 | M34: =1750 -> 0 | N34: =1094 -> 0 | O34: =1578 -> 0 | P34: =0 -> 0 | Q34: =105 -> 0 | R34: =15 -> 0 | S34: =26 -> 0 | T34: =485 -> 0 | U34: =287 -> 0 | V34: =57 -> 0 | W34: =0 -> 0 | X34: =863 -> 0 | Y34: =87 -> 0 | Z34: =15 -> 0 | AA34: =0 -> 0 | AB34: =78 -> 0 | AC34: =70 -> 0 | AD34: =66 -> 0 | AE34: =86 -> 0 | AF34: =26 -> 0 | AG34: =0 -> 0 | AH34: =0 -> 0 | AI34: =0 -> 0 | AJ34: =0 -> 0 | AK34: =8 -> 0 | AL34: =684 -> 0 | AM34: =411 -> 0 | AN34: =0 -> 0 | AO34: =0 -> 0 | AP34: =36 -> 0 | AQ34: =0 -> 0 | AR34: =10 -> 0 | AS34: =49 -> 0 | AT34: =8 -> 0 | AU34: =0 -> 0 | AV34: =82 -> 0 | AW34: =4 -> 0 | AX34: =0 -> 0 | AY34: =16 -> 0 | AZ34: =0 -> 0 | BA34: =0 -> 0 | BB34: =1 -> 0 | BC34: =19 -> 0 | BD34: =0 -> 0 | BE34: =0 -> 0 | BF34: =0 -> 0 | BG34: =0 -> 0 | BH34: =0 -> 0 | BI34: =0 -> 0 | BJ34: =0 -> 0 | BK34: =34 -> 0 | BL34: =6 -> 0 | BM34: =0 -> 0 | BN34: =31 -> 0 | BO34: =41 -> 0 | BP34: =5 -> 0 | BQ34: =30 -> 0 | BR34: =58 -> 0 | BS34: =69 -> 0 | BT34: =222 -> 0 | BU34: =90 -> 0 | BV34: =20 -> 0 | BW34: =45 -> 0 | BX34: =0 -> 0 | BY34: =0 -> 0 | BZ34: =0 -> 0 | CA34: =0 -> 0
B35: 2.11 | C35: Current Premium PMPM | D35: =SUMPRODUCT(E35:XFD35,E34:XFD34)/D34 -> 828.8042 | E35: =0 -> 0 | F35: =717.9 -> 0 | G35: =715.38 -> 0 | H35: =811.62 -> 0 | I35: =726.79 -> 0 | J35: =843.8 -> 0 | K35: =912.06 -> 0 | L35: =873.88 -> 0 | M35: =872.44 -> 0 | N35: =843.7 -> 0 | O35: =869.6 -> 0 | P35: =0 -> 0 | Q35: =646.71 -> 0 | R35: =572.16 -> 0 | S35: =559.09 -> 0 | T35: =722.88 -> 0 | U35: =763.18 -> 0 | V35: =625.27 -> 0 | W35: =0 -> 0 | X35: =746.69 -> 0 | Y35: =891.39 -> 0 | Z35: =992.65 -> 0 | AA35: =0 -> 0 | AB35: =863.76 -> 0 | AC35: =733.41 -> 0 | AD35: =794.19 -> 0 | AE35: =856.3 -> 0 | AF35: =783.2 -> 0 | AG35: =0 -> 0 | AH35: =0 -> 0 | AI35: =0 -> 0 | AJ35: =0 -> 0 | AK35: =797.84 -> 0 | AL35: =1005.96 -> 0 | AM35: =1022.1 -> 0 | AN35: =0 -> 0 | AO35: =0 -> 0 | AP35: =516.05 -> 0 | AQ35: =0 -> 0 | AR35: =543.17 -> 0 | AS35: =708.34 -> 0 | AT35: =589.79 -> 0 | AU35: =0 -> 0 | AV35: =711.69 -> 0 | AW35: =481.98 -> 0 | AX35: =0 -> 0 | AY35: =779.59 -> 0 | AZ35: =0 -> 0 | BA35: =0 -> 0 | BB35: =418.91 -> 0 | BC35: =641.21 -> 0 | BD35: =0 -> 0 | BE35: =0 -> 0 | BF35: =0 -> 0 | BG35: =0 -> 0 | BH35: =0 -> 0 | BI35: =0 -> 0 | BJ35: =0 -> 0 | BK35: =742.57 -> 0 | BL35: =1102.8 -> 0 | BM35: =0 -> 0 | BN35: =617.89 -> 0 | BO35: =687.63 -> 0 | BP35: =381.82 -> 0 | BQ35: =618.01 -> 0 | BR35: =633.68 -> 0 | BS35: =763.45 -> 0 | BT35: =690.83 -> 0 | BU35: =700.99 -> 0 | BV35: =943.13 -> 0 | BW35: =732.1 -> 0 | BX35: =0 -> 0 | BY35: =0 -> 0 | BZ35: =0 -> 0 | CA35: =0 -> 0
B36: 2.12 | C36: Loss Ratio | D36: =D30/(D31+D32) -> 0.8385798512 | E36: 0 | F36: 0 | G36: 0 | H36: 0 | I36: 0 | J36: 0 | K36: 0 | L36: 0 | M36: 0 | N36: 0 | O36: 0 | P36: 0 | Q36: 0 | R36: 0 | S36: 0 | T36: 0 | U36: 0 | V36: 0 | W36: 0 | X36: 0 | Y36: 0 | Z36: 0 | AA36: 0 | AB36: 0 | AC36: 0 | AD36: 0 | AE36: 0 | AF36: 0 | AG36: 0 | AH36: 0 | AI36: 0 | AJ36: =AJ30/(AJ31+AJ32) -> 0 | AK36: 0 | AL36: 0 | AM36: 0 | AN36: 0 | AO36: 0 | AP36: 0 | AQ36: 0 | AR36: 0 | AS36: 0 | AT36: 0 | AU36: 0 | AV36: 0 | AW36: 0 | AX36: 0 | AY36: 0 | AZ36: 0 | BA36: 0 | BB36: 0 | BC36: 0 | BD36: 0 | BE36: 0 | BF36: 0 | BG36: 0 | BH36: 0 | BI36: 0 | BJ36: 0 | BK36: 0 | BL36: 0 | BM36: 0 | BN36: 0 | BO36: 0 | BP36: =BP30/(BP31+BP32) -> 0 | BQ36: 0 | BR36: 0 | BS36: 0 | BT36: 0 | BU36: 0 | BV36: 0 | BW36: 0 | BX36: 0 | BY36: 0 | BZ36: 0 | CA36: 0
C37: Per Member Per Month
B38: 2.13 | C38: Allowed Claims | D38: =D26/D33 -> 711.929 | E38: 0 | F38: 0 | G38: 0 | H38: 0 | I38: 0 | J38: 0 | K38: 0 | L38: 0 | M38: 0 | N38: 0 | O38: 0 | P38: 0 | Q38: 0 | R38: 0 | S38: 0 | T38: 0 | U38: 0 | V38: 0 | W38: 0 | X38: 0 | Y38: 0 | Z38: 0 | AA38: 0 | AB38: 0 | AC38: 0 | AD38: 0 | AE38: 0 | AF38: 0 | AG38: 0 | AH38: 0 | AI38: 0 | AJ38: =AJ26/AJ33 -> 0 | AK38: 0 | AL38: 0 | AM38: 0 | AN38: 0 | AO38: 0 | AP38: 0 | AQ38: 0 | AR38: 0 | AS38: 0 | AT38: 0 | AU38: 0 | AV38: 0 | AW38: 0 | AX38: 0 | AY38: 0 | AZ38: 0 | BA38: 0 | BB38: 0 | BC38: 0 | BD38: 0 | BE38: 0 | BF38: 0 | BG38: 0 | BH38: 0 | BI38: 0 | BJ38: 0 | BK38: 0 | BL38: 0 | BM38: 0 | BN38: 0 | BO38: 0 | BP38: =BP26/BP33 -> 0 | BQ38: 0 | BR38: 0 | BS38: 0 | BT38: 0 | BU38: 0 | BV38: 0 | BW38: 0 | BX38: 0 | BY38: 0 | BZ38: 0 | CA38: 0
B39: 2.14 | C39: Reinsurance | D39: =D27/D33 -> 0 | E39: 0 | F39: 0 | G39: 0 | H39: 0 | I39: 0 | J39: 0 | K39: 0 | L39: 0 | M39: 0 | N39: 0 | O39: 0 | P39: 0 | Q39: 0 | R39: 0 | S39: 0 | T39: 0 | U39: 0 | V39: 0 | W39: 0 | X39: 0 | Y39: 0 | Z39: 0 | AA39: 0 | AB39: 0 | AC39: 0 | AD39: 0 | AE39: 0 | AF39: 0 | AG39: 0 | AH39: 0 | AI39: 0 | AJ39: =AJ27/AJ33 -> 0 | AK39: 0 | AL39: 0 | AM39: 0 | AN39: 0 | AO39: 0 | AP39: 0 | AQ39: 0 | AR39: 0 | AS39: 0 | AT39: 0 | AU39: 0 | AV39: 0 | AW39: 0 | AX39: 0 | AY39: 0 | AZ39: 0 | BA39: 0 | BB39: 0 | BC39: 0 | BD39: 0 | BE39: 0 | BF39: 0 | BG39: 0 | BH39: 0 | BI39: 0 | BJ39: 0 | BK39: 0 | BL39: 0 | BM39: 0 | BN39: 0 | BO39: 0 | BP39: =BP27/BP33 -> 0 | BQ39: 0 | BR39: 0 | BS39: 0 | BT39: 0 | BU39: 0 | BV39: 0 | BW39: 0 | BX39: 0 | BY39: 0 | BZ39: 0 | CA39: 0
B40: 2.15 | C40: Member Cost Sharing | D40: =D28/D33 -> 124.1097 | E40: 0 | F40: 0 | G40: 0 | H40: 0 | I40: 0 | J40: 0 | K40: 0 | L40: 0 | M40: 0 | N40: 0 | O40: 0 | P40: 0 | Q40: 0 | R40: 0 | S40: 0 | T40: 0 | U40: 0 | V40: 0 | W40: 0 | X40: 0 | Y40: 0 | Z40: 0 | AA40: 0 | AB40: 0 | AC40: 0 | AD40: 0 | AE40: 0 | AF40: 0 | AG40: 0 | AH40: 0 | AI40: 0 | AJ40: =AJ28/AJ33 -> 0 | AK40: 0 | AL40: 0 | AM40: 0 | AN40: 0 | AO40: 0 | AP40: 0 | AQ40: 0 | AR40: 0 | AS40: 0 | AT40: 0 | AU40: 0 | AV40: 0 | AW40: 0 | AX40: 0 | AY40: 0 | AZ40: 0 | BA40: 0 | BB40: 0 | BC40: 0 | BD40: 0 | BE40: 0 | BF40: 0 | BG40: 0 | BH40: 0 | BI40: 0 | BJ40: 0 | BK40: 0 | BL40: 0 | BM40: 0 | BN40: 0 | BO40: 0 | BP40: =BP28/BP33 -> 0 | BQ40: 0 | BR40: 0 | BS40: 0 | BT40: 0 | BU40: 0 | BV40: 0 | BW40: 0 | BX40: 0 | BY40: 0 | BZ40: 0 | CA40: 0
B41: 2.16 | C41: Cost Sharing Reduction | D41: =D29/D33 -> 0 | E41: 0 | F41: 0 | G41: 0 | H41: 0 | I41: 0 | J41: 0 | K41: 0 | L41: 0 | M41: 0 | N41: 0 | O41: 0 | P41: 0 | Q41: 0 | R41: 0 | S41: 0 | T41: 0 | U41: 0 | V41: 0 | W41: 0 | X41: 0 | Y41: 0 | Z41: 0 | AA41: 0 | AB41: 0 | AC41: 0 | AD41: 0 | AE41: 0 | AF41: 0 | AG41: 0 | AH41: 0 | AI41: 0 | AJ41: =AJ29/AJ33 -> 0 | AK41: 0 | AL41: 0 | AM41: 0 | AN41: 0 | AO41: 0 | AP41: 0 | AQ41: 0 | AR41: 0 | AS41: 0 | AT41: 0 | AU41: 0 | AV41: 0 | AW41: 0 | AX41: 0 | AY41: 0 | AZ41: 0 | BA41: 0 | BB41: 0 | BC41: 0 | BD41: 0 | BE41: 0 | BF41: 0 | BG41: 0 | BH41: 0 | BI41: 0 | BJ41: 0 | BK41: 0 | BL41: 0 | BM41: 0 | BN41: 0 | BO41: 0 | BP41: =BP29/BP33 -> 0 | BQ41: 0 | BR41: 0 | BS41: 0 | BT41: 0 | BU41: 0 | BV41: 0 | BW41: 0 | BX41: 0 | BY41: 0 | BZ41: 0 | CA41: 0
B42: 2.17 | C42: Incurred Claims | D42: =D30/D33 -> 587.8193 | E42: 0 | F42: 0 | G42: 0 | H42: 0 | I42: 0 | J42: 0 | K42: 0 | L42: 0 | M42: 0 | N42: 0 | O42: 0 | P42: 0 | Q42: 0 | R42: 0 | S42: 0 | T42: 0 | U42: 0 | V42: 0 | W42: 0 | X42: 0 | Y42: 0 | Z42: 0 | AA42: 0 | AB42: 0 | AC42: 0 | AD42: 0 | AE42: 0 | AF42: 0 | AG42: 0 | AH42: 0 | AI42: 0 | AJ42: =AJ30/AJ33 -> 0 | AK42: 0 | AL42: 0 | AM42: 0 | AN42: 0 | AO42: 0 | AP42: 0 | AQ42: 0 | AR42: 0 | AS42: 0 | AT42: 0 | AU42: 0 | AV42: 0 | AW42: 0 | AX42: 0 | AY42: 0 | AZ42: 0 | BA42: 0 | BB42: 0 | BC42: 0 | BD42: 0 | BE42: 0 | BF42: 0 | BG42: 0 | BH42: 0 | BI42: 0 | BJ42: 0 | BK42: 0 | BL42: 0 | BM42: 0 | BN42: 0 | BO42: 0 | BP42: =BP30/BP33 -> 0 | BQ42: 0 | BR42: 0 | BS42: 0 | BT42: 0 | BU42: 0 | BV42: 0 | BW42: 0 | BX42: 0 | BY42: 0 | BZ42: 0 | CA42: 0
B43: 2.18 | C43: Risk Adjustment Transfer Amount | D43: =D31/D33 -> 1.065 | E43: 0 | F43: 0 | G43: 0 | H43: 0 | I43: 0 | J43: 0 | K43: 0 | L43: 0 | M43: 0 | N43: 0 | O43: 0 | P43: 0 | Q43: 0 | R43: 0 | S43: 0 | T43: 0 | U43: 0 | V43: 0 | W43: 0 | X43: 0 | Y43: 0 | Z43: 0 | AA43: 0 | AB43: 0 | AC43: 0 | AD43: 0 | AE43: 0 | AF43: 0 | AG43: 0 | AH43: 0 | AI43: 0 | AJ43: =AJ31/AJ33 -> 0 | AK43: 0 | AL43: 0 | AM43: 0 | AN43: 0 | AO43: 0 | AP43: 0 | AQ43: 0 | AR43: 0 | AS43: 0 | AT43: 0 | AU43: 0 | AV43: 0 | AW43: 0 | AX43: 0 | AY43: 0 | AZ43: 0 | BA43: 0 | BB43: 0 | BC43: 0 | BD43: 0 | BE43: 0 | BF43: 0 | BG43: 0 | BH43: 0 | BI43: 0 | BJ43: 0 | BK43: 0 | BL43: 0 | BM43: 0 | BN43: 0 | BO43: 0 | BP43: =BP31/BP33 -> 0 | BQ43: 0 | BR43: 0 | BS43: 0 | BT43: 0 | BU43: 0 | BV43: 0 | BW43: 0 | BX43: 0 | BY43: 0 | BZ43: 0 | CA43: 0
B44: 2.19 | C44: Premium | D44: =D32/D33 -> 699.905 | E44: 0 | F44: 0 | G44: 0 | H44: 0 | I44: 0 | J44: 0 | K44: 0 | L44: 0 | M44: 0 | N44: 0 | O44: 0 | P44: 0 | Q44: 0 | R44: 0 | S44: 0 | T44: 0 | U44: 0 | V44: 0 | W44: 0 | X44: 0 | Y44: 0 | Z44: 0 | AA44: 0 | AB44: 0 | AC44: 0 | AD44: 0 | AE44: 0 | AF44: 0 | AG44: 0 | AH44: 0 | AI44: 0 | AJ44: =AJ32/AJ33 -> 0 | AK44: 0 | AL44: 0 | AM44: 0 | AN44: 0 | AO44: 0 | AP44: 0 | AQ44: 0 | AR44: 0 | AS44: 0 | AT44: 0 | AU44: 0 | AV44: 0 | AW44: 0 | AX44: 0 | AY44: 0 | AZ44: 0 | BA44: 0 | BB44: 0 | BC44: 0 | BD44: 0 | BE44: 0 | BF44: 0 | BG44: 0 | BH44: 0 | BI44: 0 | BJ44: 0 | BK44: 0 | BL44: 0 | BM44: 0 | BN44: 0 | BO44: 0 | BP44: =BP32/BP33 -> 0 | BQ44: 0 | BR44: 0 | BS44: 0 | BT44: 0 | BU44: 0 | BV44: 0 | BW44: 0 | BX44: 0 | BY44: 0 | BZ44: 0 | CA44: 0
C46: Section III: Plan Adjustment Factors
B47: 3.1 | C47: Plan ID (Standard Component ID) | E47: =E13 -> 0 | F47: 0 | G47: 0 | H47: 0 | I47: 0 | J47: 0 | K47: 0 | L47: 0 | M47: 0 | N47: 0 | O47: 0 | P47: 0 | Q47: 0 | R47: 0 | S47: 0 | T47: 0 | U47: 0 | V47: 0 | W47: 0 | X47: 0 | Y47: 0 | Z47: 0 | AA47: 0 | AB47: 0 | AC47: 0 | AD47: 0 | AE47: 0 | AF47: 0 | AG47: 0 | AH47: 0 | AI47: 0 | AJ47: 0 | AK47: =AK13 -> 0 | AL47: 0 | AM47: 0 | AN47: 0 | AO47: 0 | AP47: 0 | AQ47: 0 | AR47: 0 | AS47: 0 | AT47: 0 | AU47: 0 | AV47: 0 | AW47: 0 | AX47: 0 | AY47: 0 | AZ47: 0 | BA47: 0 | BB47: 0 | BC47: 0 | BD47: 0 | BE47: 0 | BF47: 0 | BG47: 0 | BH47: 0 | BI47: 0 | BJ47: 0 | BK47: 0 | BL47: 0 | BM47: 0 | BN47: 0 | BO47: 0 | BP47: 0 | BQ47: =BQ13 -> 0 | BR47: 0 | BS47: 0 | BT47: 0 | BU47: 0 | BV47: 0 | BW47: 0 | BX47: 0 | BY47: 0 | BZ47: 0 | CA47: 0
B48: 3.2 | C48: Market Adjusted Index Rate | E48: ='Wksh 1 - Market Experience'!F46 -> 0
B49: 3.3 | C49: AV and Cost Sharing Design of Plan | E49: 0 | F49: 0.7298 | G49: 0.752 | H49: 0.7492 | I49: 0.7356 | J49: 0.8317 | K49: 0.8622 | L49: 0.8579 | M49: 0.8559 | N49: 0.847 | O49: 0.8647 | P49: 0.7229 | Q49: 0.6729 | R49: 0.7067 | S49: 0.7308 | T49: 0.7467 | U49: 0.7358 | V49: 0.7484 | W49: 0.7269 | X49: 0.7614 | Y49: 0.7602 | Z49: 0.7591 | AA49: 0.8092 | AB49: 0.8559 | AC49: 0.8583 | AD49: 0.7964 | AE49: 0.8323 | AF49: 0.841 | AG49: 0.8493 | AH49: 0.8659 | AI49: 0.8432 | AJ49: 0.8235 | AK49: 0.9792 | AL49: 0.9908 | AM49: 0.9957 | AN49: 0 | AO49: 0.7229 | AP49: 0.6728 | AQ49: 0.7067 | AR49: 0.7484 | AS49: 0.7467 | AT49: 0.7308 | AU49: 0.7268 | AV49: 0.7614 | AW49: 0.7602 | AX49: 0.7591 | AY49: 0.7358 | AZ49: 0.8092 | BA49: 0.841 | BB49: 0.7964 | BC49: 0.8323 | BD49: 0.8583 | BE49: 0.8432 | BF49: 0.8659 | BG49: 0.8492 | BH49: 0.8559 | BI49: 0.8235 | BJ49: 0.9792 | BK49: 0.9908 | BL49: 0.9957 | BM49: 0 | BN49: 0.7492 | BO49: 0.752 | BP49: 0.7356 | BQ49: 0.7298 | BR49: 0.847 | BS49: 0.8646 | BT49: 0.8316 | BU49: 0.8559 | BV49: 0.8622 | BW49: 0.8579 | BX49: 0 | BY49: 0 | BZ49: 0 | CA49: 0
B50: 3.4 | C50: Provider Network Adjustment | E50: 0 | F50: 1.0084 | G50: 1.0084 | H50: 1.0084 | I50: 1.0084 | J50: 1.0084 | K50: 1.0084 | L50: 1.0084 | M50: 1.0084 | N50: 1.0084 | O50: 1.0084 | P50: 1.0084 | Q50: 1.0084 | R50: 1.0084 | S50: 1.0084 | T50: 1.0084 | U50: 1.0084 | V50: 1.0084 | W50: 1.0084 | X50: 1.0084 | Y50: 1.0084 | Z50: 1.0084 | AA50: 1.0084 | AB50: 1.0084 | AC50: 1.0084 | AD50: 1.0084 | AE50: 1.0084 | AF50: 1.0084 | AG50: 1.0084 | AH50: 1.0084 | AI50: 1.0084 | AJ50: 1.0084 | AK50: 1.0084 | AL50: 1.0084 | AM50: 1.0084 | AN50: 0 | AO50: 0.8701 | AP50: 0.8701 | AQ50: 0.8701 | AR50: 0.8701 | AS50: 0.8701 | AT50: 0.8701 | AU50: 0.8701 | AV50: 0.8701 | AW50: 0.8701 | AX50: 0.8701 | AY50: 0.8701 | AZ50: 0.8701 | BA50: 0.8701 | BB50: 0.8701 | BC50: 0.8701 | BD50: 0.8701 | BE50: 0.8701 | BF50: 0.8701 | BG50: 0.8701 | BH50: 0.8701 | BI50: 0.8701 | BJ50: 0.8701 | BK50: 0.8701 | BL50: 0.8701 | BM50: 0 | BN50: 0.8701 | BO50: 0.8701 | BP50: 0.8701 | BQ50: 0.8701 | BR50: 0.8701 | BS50: 0.8701 | BT50: 0.8701 | BU50: 0.8701 | BV50: 0.8701 | BW50: 0.8701 | BX50: 0 | BY50: 0 | BZ50: 0 | CA50: 0
B51: 3.5 | C51: Benefits in Addition to EHB | E51: 0 | F51: 1.0074 | G51: 1.0072 | H51: 1.0073 | I51: 1.0073 | J51: 1.0069 | K51: 1.0067 | L51: 1.0067 | M51: 1.0068 | N51: 1.0068 | O51: 1.0067 | P51: 1.0074 | Q51: 1.0077 | R51: 1.0075 | S51: 1.0182 | T51: 1.0073 | U51: 1.0073 | V51: 1.0073 | W51: 1.0074 | X51: 1.0072 | Y51: 1.0072 | Z51: 1.0072 | AA51: 1.007 | AB51: 1.0068 | AC51: 1.016 | AD51: 1.007 | AE51: 1.0164 | AF51: 1.0068 | AG51: 1.0068 | AH51: 1.0067 | AI51: 1.0068 | AJ51: 1.0069 | AK51: 1.0063 | AL51: 1.0063 | AM51: 1.0063 | AN51: 0 | AO51: 1.0074 | AP51: 1.0077 | AQ51: 1.0075 | AR51: 1.0072 | AS51: 1.0073 | AT51: 1.0181 | AU51: 1.0074 | AV51: 1.0072 | AW51: 1.0072 | AX51: 1.0072 | AY51: 1.0073 | AZ51: 1.0069 | BA51: 1.0068 | BB51: 1.007 | BC51: 1.0163 | BD51: 1.0159 | BE51: 1.0068 | BF51: 1.0067 | BG51: 1.0068 | BH51: 1.0067 | BI51: 1.0069 | BJ51: 1.0063 | BK51: 1.0063 | BL51: 1.0063 | BM51: 0 | BN51: 1.0072 | BO51: 1.0072 | BP51: 1.0073 | BQ51: 1.0073 | BR51: 1.0068 | BS51: 1.0067 | BT51: 1.0068 | BU51: 1.0067 | BV51: 1.0067 | BW51: 1.0067 | BX51: 0 | BY51: 0 | BZ51: 0 | CA51: 0
C52: Administrative Costs
B53: 3.6 | C53: Administrative Expense | E53: 0 | F53: 0.0576 | G53: 0.0576 | H53: 0.0576 | I53: 0.0576 | J53: 0.0576 | K53: 0.0576 | L53: 0.0576 | M53: 0.0576 | N53: 0.0576 | O53: 0.0576 | P53: 0.0576 | Q53: 0.0576 | R53: 0.0576 | S53: 0.0576 | T53: 0.0576 | U53: 0.0576 | V53: 0.0576 | W53: 0.0576 | X53: 0.0576 | Y53: 0.0576 | Z53: 0.0576 | AA53: 0.0576 | AB53: 0.0576 | AC53: 0.0576 | AD53: 0.0576 | AE53: 0.0576 | AF53: 0.0576 | AG53: 0.0576 | AH53: 0.0576 | AI53: 0.0576 | AJ53: 0.0576 | AK53: 0.0576 | AL53: 0.0576 | AM53: 0.0576 | AN53: 0 | AO53: 0.0576 | AP53: 0.0576 | AQ53: 0.0576 | AR53: 0.0576 | AS53: 0.0576 | AT53: 0.0576 | AU53: 0.0576 | AV53: 0.0576 | AW53: 0.0576 | AX53: 0.0576 | AY53: 0.0576 | AZ53: 0.0576 | BA53: 0.0576 | BB53: 0.0576 | BC53: 0.0576 | BD53: 0.0576 | BE53: 0.0576 | BF53: 0.0576 | BG53: 0.0576 | BH53: 0.0576 | BI53: 0.0576 | BJ53: 0.0576 | BK53: 0.0576 | BL53: 0.0576 | BM53: 0 | BN53: 0.0576 | BO53: 0.0576 | BP53: 0.0576 | BQ53: 0.0576 | BR53: 0.0576 | BS53: 0.0576 | BT53: 0.0576 | BU53: 0.0576 | BV53: 0.0576 | BW53: 0.0576 | BX53: 0 | BY53: 0 | BZ53: 0 | CA53: 0
B54: 3.7 | C54: Taxes and Fees | E54: 0 | F54: 0.0281 | G54: 0.0281 | H54: 0.0281 | I54: 0.0281 | J54: 0.0281 | K54: 0.0281 | L54: 0.0281 | M54: 0.0281 | N54: 0.0281 | O54: 0.0281 | P54: 0.0281 | Q54: 0.0281 | R54: 0.0281 | S54: 0.0281 | T54: 0.0281 | U54: 0.0281 | V54: 0.0281 | W54: 0.0281 | X54: 0.0281 | Y54: 0.0281 | Z54: 0.0281 | AA54: 0.0281 | AB54: 0.0281 | AC54: 0.0281 | AD54: 0.0281 | AE54: 0.0281 | AF54: 0.0281 | AG54: 0.0281 | AH54: 0.0281 | AI54: 0.0281 | AJ54: 0.0281 | AK54: 0.0281 | AL54: 0.0281 | AM54: 0.0281 | AN54: 0 | AO54: 0.0281 | AP54: 0.0281 | AQ54: 0.0281 | AR54: 0.0281 | AS54: 0.0281 | AT54: 0.0281 | AU54: 0.0281 | AV54: 0.0281 | AW54: 0.0281 | AX54: 0.0281 | AY54: 0.0281 | AZ54: 0.0281 | BA54: 0.0281 | BB54: 0.0281 | BC54: 0.0281 | BD54: 0.0281 | BE54: 0.0281 | BF54: 0.0281 | BG54: 0.0281 | BH54: 0.0281 | BI54: 0.0281 | BJ54: 0.0281 | BK54: 0.0281 | BL54: 0.0281 | BM54: 0 | BN54: 0.0281 | BO54: 0.0281 | BP54: 0.0281 | BQ54: 0.0281 | BR54: 0.0281 | BS54: 0.0281 | BT54: 0.0281 | BU54: 0.0281 | BV54: 0.0281 | BW54: 0.0281 | BX54: 0 | BY54: 0 | BZ54: 0 | CA54: 0
B55: 3.8 | C55: Profit & Risk Load | E55: 0 | F55: 0.0474 | G55: 0.0474 | H55: 0.0474 | I55: 0.0474 | J55: 0.0474 | K55: 0.0474 | L55: 0.0474 | M55: 0.0474 | N55: 0.0474 | O55: 0.0474 | P55: 0.0474 | Q55: 0.0474 | R55: 0.0474 | S55: 0.0474 | T55: 0.0474 | U55: 0.0474 | V55: 0.0474 | W55: 0.0474 | X55: 0.0474 | Y55: 0.0474 | Z55: 0.0474 | AA55: 0.0474 | AB55: 0.0474 | AC55: 0.0474 | AD55: 0.0474 | AE55: 0.0474 | AF55: 0.0474 | AG55: 0.0474 | AH55: 0.0474 | AI55: 0.0474 | AJ55: 0.0474 | AK55: 0.0474 | AL55: 0.0474 | AM55: 0.0474 | AN55: 0 | AO55: 0.0474 | AP55: 0.0474 | AQ55: 0.0474 | AR55: 0.0474 | AS55: 0.0474 | AT55: 0.0474 | AU55: 0.0474 | AV55: 0.0474 | AW55: 0.0474 | AX55: 0.0474 | AY55: 0.0474 | AZ55: 0.0474 | BA55: 0.0474 | BB55: 0.0474 | BC55: 0.0474 | BD55: 0.0474 | BE55: 0.0474 | BF55: 0.0474 | BG55: 0.0474 | BH55: 0.0474 | BI55: 0.0474 | BJ55: 0.0474 | BK55: 0.0474 | BL55: 0.0474 | BM55: 0 | BN55: 0.0474 | BO55: 0.0474 | BP55: 0.0474 | BQ55: 0.0474 | BR55: 0.0474 | BS55: 0.0474 | BT55: 0.0474 | BU55: 0.0474 | BV55: 0.0474 | BW55: 0.0474 | BX55: 0 | BY55: 0 | BZ55: 0 | CA55: 0
B56: 3.9 | C56: Catastrophic Adjustment | E56: 0 | F56: 1 | G56: 1 | H56: 1 | I56: 1 | J56: 1 | K56: 1 | L56: 1 | M56: 1 | N56: 1 | O56: 1 | P56: 1 | Q56: 1 | R56: 1 | S56: 1 | T56: 1 | U56: 1 | V56: 1 | W56: 1 | X56: 1 | Y56: 1 | Z56: 1 | AA56: 1 | AB56: 1 | AC56: 1 | AD56: 1 | AE56: 1 | AF56: 1 | AG56: 1 | AH56: 1 | AI56: 1 | AJ56: 1 | AK56: 1 | AL56: 1 | AM56: 1 | AN56: 0 | AO56: 1 | AP56: 1 | AQ56: 1 | AR56: 1 | AS56: 1 | AT56: 1 | AU56: 1 | AV56: 1 | AW56: 1 | AX56: 1 | AY56: 1 | AZ56: 1 | BA56: 1 | BB56: 1 | BC56: 1 | BD56: 1 | BE56: 1 | BF56: 1 | BG56: 1 | BH56: 1 | BI56: 1 | BJ56: 1 | BK56: 1 | BL56: 1 | BM56: 0 | BN56: 1 | BO56: 1 | BP56: 1 | BQ56: 1 | BR56: 1 | BS56: 1 | BT56: 1 | BU56: 1 | BV56: 1 | BW56: 1 | BX56: 0 | BY56: 0 | BZ56: 0 | CA56: 0
B57: 3.10 | C57: Plan Adjusted Index Rate | E57: =($E$48*PRODUCT(E49:E51)*E56)/(1-SUM(E53:E55)) -> 0 | F57: 0 | G57: 0 | H57: 0 | I57: 0 | J57: 0 | K57: 0 | L57: 0 | M57: 0 | N57: 0 | O57: 0 | P57: 0 | Q57: 0 | R57: 0 | S57: 0 | T57: 0 | U57: 0 | V57: 0 | W57: 0 | X57: 0 | Y57: 0 | Z57: 0 | AA57: 0 | AB57: 0 | AC57: 0 | AD57: 0 | AE57: 0 | AF57: 0 | AG57: 0 | AH57: 0 | AI57: 0 | AJ57: 0 | AK57: =($E$48*PRODUCT(AK49:AK51)*AK56)/(1-SUM(AK53:AK55)) -> 0 | AL57: 0 | AM57: 0 | AN57: 0 | AO57: 0 | AP57: 0 | AQ57: 0 | AR57: 0 | AS57: 0 | AT57: 0 | AU57: 0 | AV57: 0 | AW57: 0 | AX57: 0 | AY57: 0 | AZ57: 0 | BA57: 0 | BB57: 0 | BC57: 0 | BD57: 0 | BE57: 0 | BF57: 0 | BG57: 0 | BH57: 0 | BI57: 0 | BJ57: 0 | BK57: 0 | BL57: 0 | BM57: 0 | BN57: 0 | BO57: 0 | BP57: 0 | BQ57: =($E$48*PRODUCT(BQ49:BQ51)*BQ56)/(1-SUM(BQ53:BQ55)) -> 0 | BR57: 0 | BS57: 0 | BT57: 0 | BU57: 0 | BV57: 0 | BW57: 0 | BX57: 0 | BY57: 0 | BZ57: 0 | CA57: 0
B59: 3.11 | C59: Age Calibration Factor | D59: 0.6719526945 | E59: =IF(D59<>"", D59, "") -> 0
B60: 3.12 | C60: Geographic Calibration Factor | D60: 0.99990001 | E60: =IF(D60<>"", D60, "") -> 0
B61: 3.13 | C61: Tobacco Calibration Factor | D61: 1 | E61: =IF(D61<>"", D61, "") -> 0
B62: 3.14 | C62: Calibrated Plan Adjusted Index Rate | E62: =E57*(PRODUCT($E$59:$E$61)) -> 0 | F62: 0 | G62: 0 | H62: 0 | I62: 0 | J62: 0 | K62: 0 | L62: 0 | M62: 0 | N62: 0 | O62: 0 | P62: 0 | Q62: 0 | R62: 0 | S62: 0 | T62: 0 | U62: 0 | V62: 0 | W62: 0 | X62: 0 | Y62: 0 | Z62: 0 | AA62: 0 | AB62: 0 | AC62: 0 | AD62: 0 | AE62: 0 | AF62: 0 | AG62: 0 | AH62: 0 | AI62: 0 | AJ62: 0 | AK62: =AK57*(PRODUCT($E$59:$E$61)) -> 0 | AL62: 0 | AM62: 0 | AN62: 0 | AO62: 0 | AP62: 0 | AQ62: 0 | AR62: 0 | AS62: 0 | AT62: 0 | AU62: 0 | AV62: 0 | AW62: 0 | AX62: 0 | AY62: 0 | AZ62: 0 | BA62: 0 | BB62: 0 | BC62: 0 | BD62: 0 | BE62: 0 | BF62: 0 | BG62: 0 | BH62: 0 | BI62: 0 | BJ62: 0 | BK62: 0 | BL62: 0 | BM62: 0 | BN62: 0 | BO62: 0 | BP62: 0 | BQ62: =BQ57*(PRODUCT($E$59:$E$61)) -> 0 | BR62: 0 | BS62: 0 | BT62: 0 | BU62: 0 | BV62: 0 | BW62: 0 | BX62: 0 | BY62: 0 | BZ62: 0 | CA62: 0
C64: Section IV: Projected Plan Level Information
B65: 4.1 | C65: Plan ID (Standard Component ID) | D65: Total | E65: =E13 -> 0 | F65: 0 | G65: 0 | H65: 0 | I65: 0 | J65: 0 | K65: 0 | L65: 0 | M65: 0 | N65: 0 | O65: 0 | P65: 0 | Q65: 0 | R65: 0 | S65: 0 | T65: 0 | U65: 0 | V65: 0 | W65: 0 | X65: 0 | Y65: 0 | Z65: 0 | AA65: 0 | AB65: 0 | AC65: 0 | AD65: 0 | AE65: 0 | AF65: 0 | AG65: 0 | AH65: 0 | AI65: 0 | AJ65: 0 | AK65: =AK13 -> 0 | AL65: 0 | AM65: 0 | AN65: 0 | AO65: 0 | AP65: 0 | AQ65: 0 | AR65: 0 | AS65: 0 | AT65: 0 | AU65: 0 | AV65: 0 | AW65: 0 | AX65: 0 | AY65: 0 | AZ65: 0 | BA65: 0 | BB65: 0 | BC65: 0 | BD65: 0 | BE65: 0 | BF65: 0 | BG65: 0 | BH65: 0 | BI65: 0 | BJ65: 0 | BK65: 0 | BL65: 0 | BM65: 0 | BN65: 0 | BO65: 0 | BP65: 0 | BQ65: =BQ13 -> 0 | BR65: 0 | BS65: 0 | BT65: 0 | BU65: 0 | BV65: 0 | BW65: 0 | BX65: 0 | BY65: 0 | BZ65: 0 | CA65: 0
B66: 4.2 | C66: Allowed Claims | D66: =SUM(E66:XFD66) -> 172430497.2 | E66: =0 -> 0 | F66: =7565384.27 -> 0 | G66: =7408987.04 -> 0 | H66: =3617039.06 -> 0 | I66: =3948928.3 -> 0 | J66: =21488730.66 -> 0 | K66: =7189688.16 -> 0 | L66: =14545779.18 -> 0 | M66: =20813654.19 -> 0 | N66: =13905123.84 -> 0 | O66: =19029042.78 -> 0 | P66: =2080551.92 -> 0 | Q66: =1100393.99 -> 0 | R66: =177318.18 -> 0 | S66: =300278.31 -> 0 | T66: =6573843.17 -> 0 | U66: =3202189.38 -> 0 | V66: =560854.62 -> 0 | W66: =530595.06 -> 0 | X66: =10145504.3 -> 0 | Y66: =1116790.19 -> 0 | Z66: =46698.48 -> 0 | AA66: =284188.41 -> 0 | AB66: =798691.2 -> 0 | AC66: =807203.9 -> 0 | AD66: =623430.11 -> 0 | AE66: =969383.41 -> 0 | AF66: =310598.1 -> 0 | AG66: =68599.09 -> 0 | AH66: =68939.12 -> 0 | AI66: =69941.2 -> 0 | AJ66: =69343.72 -> 0 | AK66: =174962.83 -> 0 | AL66: =8684188.43 -> 0 | AM66: =4981281.8 -> 0 | AN66: =0 -> 0 | AO66: =109353.35 -> 0 | AP66: =329306.88 -> 0 | AQ66: =35204.58 -> 0 | AR66: =97703.18 -> 0 | AS66: =553508.67 -> 0 | AT66: =77252.06 -> 0 | AU66: =57910.94 -> 0 | AV66: =799591.6 -> 0 | AW66: =38909.92 -> 0 | AX66: =58508.12 -> 0 | AY66: =154663.02 -> 0 | AZ66: =23236.82 -> 0 | BA66: =22835.5 -> 0 | BB66: =9835.87 -> 0 | BC66: =160105.48 -> 0 | BD66: =115143.25 -> 0 | BE66: =7637.75 -> 0 | BF66: =7528.33 -> 0 | BG66: =7491.19 -> 0 | BH66: =7654.45 -> 0 | BI66: =7572.5 -> 0 | BJ66: =32518.67 -> 0 | BK66: =357819.34 -> 0 | BL66: =63270.33 -> 0 | BM66: =0 -> 0 | BN66: =281122.92 -> 0 | BO66: =390777.06 -> 0 | BP66: =47579.41 -> 0 | BQ66: =286244.94 -> 0 | BR66: =587335.29 -> 0 | BS66: =660489.92 -> 0 | BT66: =2268353.23 -> 0 | BU66: =907084.5 -> 0 | BV66: =199731.22 -> 0 | BW66: =409090.54 -> 0 | BX66: =0 -> 0 | BY66: =0 -> 0 | BZ66: =0 -> 0 | CA66: =0 -> 0
B67: 4.3 | C67: Reinsurance | D67: =SUM(E67:XFD67) -> 0 | E67: =0 -> 0 | F67: =0 -> 0 | G67: =0 -> 0 | H67: =0 -> 0 | I67: =0 -> 0 | J67: =0 -> 0 | K67: =0 -> 0 | L67: =0 -> 0 | M67: =0 -> 0 | N67: =0 -> 0 | O67: =0 -> 0 | P67: =0 -> 0 | Q67: =0 -> 0 | R67: =0 -> 0 | S67: =0 -> 0 | T67: =0 -> 0 | U67: =0 -> 0 | V67: =0 -> 0 | W67: =0 -> 0 | X67: =0 -> 0 | Y67: =0 -> 0 | Z67: =0 -> 0 | AA67: =0 -> 0 | AB67: =0 -> 0 | AC67: =0 -> 0 | AD67: =0 -> 0 | AE67: =0 -> 0 | AF67: =0 -> 0 | AG67: =0 -> 0 | AH67: =0 -> 0 | AI67: =0 -> 0 | AJ67: =0 -> 0 | AK67: =0 -> 0 | AL67: =0 -> 0 | AM67: =0 -> 0 | AN67: =0 -> 0 | AO67: =0 -> 0 | AP67: =0 -> 0 | AQ67: =0 -> 0 | AR67: =0 -> 0 | AS67: =0 -> 0 | AT67: =0 -> 0 | AU67: =0 -> 0 | AV67: =0 -> 0 | AW67: =0 -> 0 | AX67: =0 -> 0 | AY67: =0 -> 0 | AZ67: =0 -> 0 | BA67: =0 -> 0 | BB67: =0 -> 0 | BC67: =0 -> 0 | BD67: =0 -> 0 | BE67: =0 -> 0 | BF67: =0 -> 0 | BG67: =0 -> 0 | BH67: =0 -> 0 | BI67: =0 -> 0 | BJ67: =0 -> 0 | BK67: =0 -> 0 | BL67: =0 -> 0 | BM67: =0 -> 0 | BN67: =0 -> 0 | BO67: =0 -> 0 | BP67: =0 -> 0 | BQ67: =0 -> 0 | BR67: =0 -> 0 | BS67: =0 -> 0 | BT67: =0 -> 0 | BU67: =0 -> 0 | BV67: =0 -> 0 | BW67: =0 -> 0 | BX67: =0 -> 0 | BY67: =0 -> 0 | BZ67: =0 -> 0 | CA67: =0 -> 0
B68: 4.4 | C68: Member Cost Sharing | D68: =SUM(E68:XFD68) -> 29532511.87 | E68: =0 -> 0 | F68: =1831850.68 -> 0 | G68: =1617874.75 -> 0 | H68: =847417.77 -> 0 | I68: =924517.48 -> 0 | J68: =3621532.31 -> 0 | K68: =1043398.31 -> 0 | L68: =2161451.51 -> 0 | M68: =3116030.28 -> 0 | N68: =2189334.86 -> 0 | O68: =2748878.96 -> 0 | P68: =581448.88 -> 0 | Q68: =342721.47 -> 0 | R68: =51688.44 -> 0 | S68: =72708.14 -> 0 | T68: =1477660.27 -> 0 | U68: =787061.54 -> 0 | V68: =135239.71 -> 0 | W68: =135121.63 -> 0 | X68: =2297874.98 -> 0 | Y68: =252212.29 -> 0 | Z68: =10724.81 -> 0 | AA68: =51400.54 -> 0 | AB68: =119572.75 -> 0 | AC68: =119947.65 -> 0 | AD68: =123443.45 -> 0 | AE68: =163371.83 -> 0 | AF68: =51645.78 -> 0 | AG68: =9461.64 -> 0 | AH68: =8648.18 -> 0 | AI68: =11222.5 -> 0 | AJ68: =11993.53 -> 0 | AK68: =12692.11 -> 0 | AL68: =592128.24 -> 0 | AM68: =326083.99 -> 0 | AN68: =0 -> 0 | AO68: =30560.82 -> 0 | AP68: =102563.75 -> 0 | AQ68: =10262.17 -> 0 | AR68: =23559.31 -> 0 | AS68: =124416.99 -> 0 | AT68: =18705.49 -> 0 | AU68: =14747.63 -> 0 | AV68: =181101.05 -> 0 | AW68: =8787.29 -> 0 | AX68: =13437.02 -> 0 | AY68: =38014.4 -> 0 | AZ68: =4202.79 -> 0 | BA68: =3797.05 -> 0 | BB68: =1947.57 -> 0 | BC68: =26982.85 -> 0 | BD68: =17109.88 -> 0 | BE68: =1225.52 -> 0 | BF68: =944.4 -> 0 | BG68: =1033.23 -> 0 | BH68: =1145.95 -> 0 | BI68: =1309.72 -> 0 | BJ68: =2358.96 -> 0 | BK68: =24397.78 -> 0 | BL68: =4141.79 -> 0 | BM68: =0 -> 0 | BN68: =65862.87 -> 0 | BO68: =85332.63 -> 0 | BP68: =11139.22 -> 0 | BQ68: =69310.16 -> 0 | BR68: =92474.81 -> 0 | BS68: =95412.41 -> 0 | BT68: =382289.43 -> 0 | BU68: =135800.41 -> 0 | BV68: =28985.85 -> 0 | BW68: =60789.41 -> 0 | BX68: =0 -> 0 | BY68: =0 -> 0 | BZ68: =0 -> 0 | CA68: =0 -> 0
B69: 4.5 | C69: Cost Sharing Reduction | D69: =SUM(E69:XFD69) -> 0 | E69: =0 -> 0 | F69: =0 -> 0 | G69: =0 -> 0 | H69: =0 -> 0 | I69: =0 -> 0 | J69: =0 -> 0 | K69: =0 -> 0 | L69: =0 -> 0 | M69: =0 -> 0 | N69: =0 -> 0 | O69: =0 -> 0 | P69: =0 -> 0 | Q69: =0 -> 0 | R69: =0 -> 0 | S69: =0 -> 0 | T69: =0 -> 0 | U69: =0 -> 0 | V69: =0 -> 0 | W69: =0 -> 0 | X69: =0 -> 0 | Y69: =0 -> 0 | Z69: =0 -> 0 | AA69: =0 -> 0 | AB69: =0 -> 0 | AC69: =0 -> 0 | AD69: =0 -> 0 | AE69: =0 -> 0 | AF69: =0 -> 0 | AG69: =0 -> 0 | AH69: =0 -> 0 | AI69: =0 -> 0 | AJ69: =0 -> 0 | AK69: =0 -> 0 | AL69: =0 -> 0 | AM69: =0 -> 0 | AN69: =0 -> 0 | AO69: =0 -> 0 | AP69: =0 -> 0 | AQ69: =0 -> 0 | AR69: =0 -> 0 | AS69: =0 -> 0 | AT69: =0 -> 0 | AU69: =0 -> 0 | AV69: =0 -> 0 | AW69: =0 -> 0 | AX69: =0 -> 0 | AY69: =0 -> 0 | AZ69: =0 -> 0 | BA69: =0 -> 0 | BB69: =0 -> 0 | BC69: =0 -> 0 | BD69: =0 -> 0 | BE69: =0 -> 0 | BF69: =0 -> 0 | BG69: =0 -> 0 | BH69: =0 -> 0 | BI69: =0 -> 0 | BJ69: =0 -> 0 | BK69: =0 -> 0 | BL69: =0 -> 0 | BM69: =0 -> 0 | BN69: =0 -> 0 | BO69: =0 -> 0 | BP69: =0 -> 0 | BQ69: =0 -> 0 | BR69: =0 -> 0 | BS69: =0 -> 0 | BT69: =0 -> 0 | BU69: =0 -> 0 | BV69: =0 -> 0 | BW69: =0 -> 0 | BX69: =0 -> 0 | BY69: =0 -> 0 | BZ69: =0 -> 0 | CA69: =0 -> 0
B70: 4.6 | C70: Incurred Claims | D70: =D66-D67-D68-D69 -> 142897985.4 | E70: 0 | F70: 0 | G70: 0 | H70: 0 | I70: 0 | J70: 0 | K70: 0 | L70: 0 | M70: 0 | N70: 0 | O70: 0 | P70: 0 | Q70: 0 | R70: 0 | S70: 0 | T70: 0 | U70: 0 | V70: 0 | W70: 0 | X70: 0 | Y70: 0 | Z70: 0 | AA70: 0 | AB70: 0 | AC70: 0 | AD70: 0 | AE70: 0 | AF70: 0 | AG70: 0 | AH70: 0 | AI70: 0 | AJ70: =AJ66-AJ67-AJ68-AJ69 -> 0 | AK70: 0 | AL70: 0 | AM70: 0 | AN70: 0 | AO70: 0 | AP70: 0 | AQ70: 0 | AR70: 0 | AS70: 0 | AT70: 0 | AU70: 0 | AV70: 0 | AW70: 0 | AX70: 0 | AY70: 0 | AZ70: 0 | BA70: 0 | BB70: 0 | BC70: 0 | BD70: 0 | BE70: 0 | BF70: 0 | BG70: 0 | BH70: 0 | BI70: 0 | BJ70: 0 | BK70: 0 | BL70: 0 | BM70: 0 | BN70: 0 | BO70: 0 | BP70: =BP66-BP67-BP68-BP69 -> 0 | BQ70: 0 | BR70: 0 | BS70: 0 | BT70: 0 | BU70: 0 | BV70: 0 | BW70: 0 | BX70: 0 | BY70: 0 | BZ70: 0 | CA70: 0
B71: 4.7 | C71: Risk Adjustment Transfer Amount | D71: =SUM(E71:XFD71) -> -73543.71 | E71: =0 -> 0 | F71: =-2949.25 -> 0 | G71: =-2978.86 -> 0 | H71: =-1424.65 -> 0 | I71: =-1555.71 -> 0 | J71: =-9190.63 -> 0 | K71: =-3161.56 -> 0 | L71: =-6370.32 -> 0 | M71: =-9103.4 -> 0 | N71: =-6026.43 -> 0 | O71: =-8374.28 -> 0 | P71: =-771.12 -> 0 | Q71: =-389.74 -> 0 | R71: =-64.62 -> 0 | S71: =-117.06 -> 0 | T71: =-2621.4 -> 0 | U71: =-1242.31 -> 0 | V71: =-218.93 -> 0 | W71: =-203.43 -> 0 | X71: =-4036.71 -> 0 | Y71: =-444.73 -> 0 | Z71: =-18.5 -> 0 | AA71: =-119.74 -> 0 | AB71: =-349.33 -> 0 | AC71: =-353.51 -> 0 | AD71: =-257.19 -> 0 | AE71: =-414.6 -> 0 | AF71: =-133.2 -> 0 | AG71: =-30.42 -> 0 | AH71: =-31.01 -> 0 | AI71: =-30.2 -> 0 | AJ71: =-29.5 -> 0 | AK71: =-83.47 -> 0 | AL71: =-4162.44 -> 0 | AM71: =-2394.57 -> 0 | AN71: =0 -> 0 | AO71: =-40.94 -> 0 | AP71: =-117.82 -> 0 | AQ71: =-12.96 -> 0 | AR71: =-38.53 -> 0 | AS71: =-222.96 -> 0 | AT71: =-30.42 -> 0 | AU71: =-22.43 -> 0 | AV71: =-321.37 -> 0 | AW71: =-15.65 -> 0 | AX71: =-23.42 -> 0 | AY71: =-60.61 -> 0 | AZ71: =-9.89 -> 0 | BA71: =-9.89 -> 0 | BB71: =-4.1 -> 0 | BC71: =-69.17 -> 0 | BD71: =-50.94 -> 0 | BE71: =-3.33 -> 0 | BF71: =-3.42 -> 0 | BG71: =-3.36 -> 0 | BH71: =-3.38 -> 0 | BI71: =-3.25 -> 0 | BJ71: =-15.67 -> 0 | BK71: =-173.25 -> 0 | BL71: =-30.72 -> 0 | BM71: =0 -> 0 | BN71: =-111.85 -> 0 | BO71: =-158.71 -> 0 | BP71: =-18.93 -> 0 | BQ71: =-112.72 -> 0 | BR71: =-257.13 -> 0 | BS71: =-293.61 -> 0 | BT71: =-980 -> 0 | BU71: =-400.76 -> 0 | BV71: =-88.72 -> 0 | BW71: =-180.98 -> 0 | BX71: =0 -> 0 | BY71: =0 -> 0 | BZ71: =0 -> 0 | CA71: =0 -> 0
B72: 4.8 | C72: Premium | D72: =SUM(E72:XFD72) -> 164931455.3 | E72: =0 -> 0 | F72: =6617511.72 -> 0 | G72: =6683933.88 -> 0 | H72: =3196582.2 -> 0 | I72: =3490484.73 -> 0 | J72: =20621916.72 -> 0 | K72: =7094027.71 -> 0 | L72: =14294143.43 -> 0 | M72: =20426751.75 -> 0 | N72: =13522451.28 -> 0 | O72: =18790291.32 -> 0 | P72: =1730221.27 -> 0 | Q72: =874174.76 -> 0 | R72: =145160.38 -> 0 | S72: =262722.69 -> 0 | T72: =5881935.07 -> 0 | U72: =2787605.6 -> 0 | V72: =491095.02 -> 0 | W72: =456166.61 -> 0 | X72: =9058030.25 -> 0 | Y72: =997591.69 -> 0 | Z72: =41798.42 -> 0 | AA72: =268217.92 -> 0 | AB72: =784172.14 -> 0 | AC72: =793568.78 -> 0 | AD72: =577289.32 -> 0 | AE72: =930737.67 -> 0 | AF72: =298952.41 -> 0 | AG72: =68167.48 -> 0 | AH72: =69497.1 -> 0 | AI72: =67684.79 -> 0 | AJ72: =66107.32 -> 0 | AK72: =187422.84 -> 0 | AL72: =9339848.36 -> 0 | AM72: =5372437.89 -> 0 | AN72: =0 -> 0 | AO72: =90682.04 -> 0 | AP72: =261857.32 -> 0 | AQ72: =29091.62 -> 0 | AR72: =85798.58 -> 0 | AS72: =495370.09 -> 0 | AT72: =67315.24 -> 0 | AU72: =49860.69 -> 0 | AV72: =713921 -> 0 | AW72: =35006.58 -> 0 | AX72: =52064.5 -> 0 | AY72: =134840.46 -> 0 | AZ72: =22195.98 -> 0 | BA72: =22239.81 -> 0 | BB72: =9362.32 -> 0 | BC72: =153883.66 -> 0 | BD72: =112821.41 -> 0 | BE72: =7432.97 -> 0 | BF72: =7632.01 -> 0 | BG72: =7485.98 -> 0 | BH72: =7544.57 -> 0 | BI72: =7259.73 -> 0 | BJ72: =34509.46 -> 0 | BK72: =385056.34 -> 0 | BL72: =68228.04 -> 0 | BM72: =0 -> 0 | BN72: =248142.5 -> 0 | BO72: =352204.79 -> 0 | BP72: =41807.82 -> 0 | BQ72: =250319.67 -> 0 | BR72: =571569.43 -> 0 | BS72: =652039.37 -> 0 | BT72: =2176588.64 -> 0 | BU72: =890259.27 -> 0 | BV72: =196740.54 -> 0 | BW72: =401622.4 -> 0 | BX72: =0 -> 0 | BY72: =0 -> 0 | BZ72: =0 -> 0 | CA72: =0 -> 0
B73: 4.9 | C73: Projected Member Months | D73: =SUM(E73:XFD73) -> 175105 | E73: =0 -> 0 | F73: =7903 -> 0 | G73: =7748 -> 0 | H73: =3719 -> 0 | I73: =4136 -> 0 | J73: =21623 -> 0 | K73: =7176 -> 0 | L73: =14531 -> 0 | M73: =20813 -> 0 | N73: =13923 -> 0 | O73: =18953 -> 0 | P73: =2086 -> 0 | Q73: =1132 -> 0 | R73: =179 -> 0 | S73: =310 -> 0 | T73: =6866 -> 0 | U73: =3302 -> 0 | V73: =572 -> 0 | W73: =547 -> 0 | X73: =10371 -> 0 | Y73: =1144 -> 0 | Z73: =48 -> 0 | AA73: =289 -> 0 | AB73: =799 -> 0 | AC73: =799 -> 0 | AD73: =632 -> 0 | AE73: =966 -> 0 | AF73: =310 -> 0 | AG73: =70 -> 0 | AH73: =70 -> 0 | AI73: =70 -> 0 | AJ73: =70 -> 0 | AK73: =167 -> 0 | AL73: =8225 -> 0 | AM73: =4708 -> 0 | AN73: =0 -> 0 | AO73: =128 -> 0 | AP73: =397 -> 0 | AQ73: =42 -> 0 | AR73: =117 -> 0 | AS73: =677 -> 0 | AT73: =93 -> 0 | AU73: =70 -> 0 | AV73: =957 -> 0 | AW73: =47 -> 0 | AX73: =70 -> 0 | AY73: =187 -> 0 | AZ73: =28 -> 0 | BA73: =27 -> 0 | BB73: =12 -> 0 | BC73: =187 -> 0 | BD73: =133 -> 0 | BE73: =9 -> 0 | BF73: =9 -> 0 | BG73: =9 -> 0 | BH73: =9 -> 0 | BI73: =9 -> 0 | BJ73: =36 -> 0 | BK73: =397 -> 0 | BL73: =70 -> 0 | BM73: =0 -> 0 | BN73: =338 -> 0 | BO73: =478 -> 0 | BP73: =58 -> 0 | BQ73: =350 -> 0 | BR73: =689 -> 0 | BS73: =770 -> 0 | BT73: =2672 -> 0 | BU73: =1062 -> 0 | BV73: =233 -> 0 | BW73: =478 -> 0 | BX73: =0 -> 0 | BY73: =0 -> 0 | BZ73: =0 -> 0 | CA73: =0 -> 0
B74: 4.10 | C74: Loss Ratio | D74: =D70/(D71+D72) -> 0.8667948292 | E74: 0 | F74: 0 | G74: 0 | H74: 0 | I74: 0 | J74: 0 | K74: 0 | L74: 0 | M74: 0 | N74: 0 | O74: 0 | P74: 0 | Q74: 0 | R74: 0 | S74: 0 | T74: 0 | U74: 0 | V74: 0 | W74: 0 | X74: 0 | Y74: 0 | Z74: 0 | AA74: 0 | AB74: 0 | AC74: 0 | AD74: 0 | AE74: 0 | AF74: 0 | AG74: 0 | AH74: 0 | AI74: 0 | AJ74: =AJ70/(AJ71+AJ72) -> 0 | AK74: 0 | AL74: 0 | AM74: 0 | AN74: 0 | AO74: 0 | AP74: 0 | AQ74: 0 | AR74: 0 | AS74: 0 | AT74: 0 | AU74: 0 | AV74: 0 | AW74: 0 | AX74: 0 | AY74: 0 | AZ74: 0 | BA74: 0 | BB74: 0 | BC74: 0 | BD74: 0 | BE74: 0 | BF74: 0 | BG74: 0 | BH74: 0 | BI74: 0 | BJ74: 0 | BK74: 0 | BL74: 0 | BM74: 0 | BN74: 0 | BO74: 0 | BP74: =BP70/(BP71+BP72) -> 0 | BQ74: 0 | BR74: 0 | BS74: 0 | BT74: 0 | BU74: 0 | BV74: 0 | BW74: 0 | BX74: 0 | BY74: 0 | BZ74: 0 | CA74: 0
C75: Per Member Per Month
B76: 4.11 | C76: Allowed Claims | D76: =D66/D73 -> 984.7263 | E76: 0 | F76: 0 | G76: 0 | H76: 0 | I76: 0 | J76: 0 | K76: 0 | L76: 0 | M76: 0 | N76: 0 | O76: 0 | P76: 0 | Q76: 0 | R76: 0 | S76: 0 | T76: 0 | U76: 0 | V76: 0 | W76: 0 | X76: 0 | Y76: 0 | Z76: 0 | AA76: 0 | AB76: 0 | AC76: 0 | AD76: 0 | AE76: 0 | AF76: 0 | AG76: 0 | AH76: 0 | AI76: 0 | AJ76: =AJ66/AJ73 -> 0 | AK76: 0 | AL76: 0 | AM76: 0 | AN76: 0 | AO76: 0 | AP76: 0 | AQ76: 0 | AR76: 0 | AS76: 0 | AT76: 0 | AU76: 0 | AV76: 0 | AW76: 0 | AX76: 0 | AY76: 0 | AZ76: 0 | BA76: 0 | BB76: 0 | BC76: 0 | BD76: 0 | BE76: 0 | BF76: 0 | BG76: 0 | BH76: 0 | BI76: 0 | BJ76: 0 | BK76: 0 | BL76: 0 | BM76: 0 | BN76: 0 | BO76: 0 | BP76: =BP66/BP73 -> 0 | BQ76: 0 | BR76: 0 | BS76: 0 | BT76: 0 | BU76: 0 | BV76: 0 | BW76: 0 | BX76: 0 | BY76: 0 | BZ76: 0 | CA76: 0
B77: 4.12 | C77: Reinsurance | D77: =D67/D73 -> 0 | E77: 0 | F77: 0 | G77: 0 | H77: 0 | I77: 0 | J77: 0 | K77: 0 | L77: 0 | M77: 0 | N77: 0 | O77: 0 | P77: 0 | Q77: 0 | R77: 0 | S77: 0 | T77: 0 | U77: 0 | V77: 0 | W77: 0 | X77: 0 | Y77: 0 | Z77: 0 | AA77: 0 | AB77: 0 | AC77: 0 | AD77: 0 | AE77: 0 | AF77: 0 | AG77: 0 | AH77: 0 | AI77: 0 | AJ77: =AJ67/AJ73 -> 0 | AK77: 0 | AL77: 0 | AM77: 0 | AN77: 0 | AO77: 0 | AP77: 0 | AQ77: 0 | AR77: 0 | AS77: 0 | AT77: 0 | AU77: 0 | AV77: 0 | AW77: 0 | AX77: 0 | AY77: 0 | AZ77: 0 | BA77: 0 | BB77: 0 | BC77: 0 | BD77: 0 | BE77: 0 | BF77: 0 | BG77: 0 | BH77: 0 | BI77: 0 | BJ77: 0 | BK77: 0 | BL77: 0 | BM77: 0 | BN77: 0 | BO77: 0 | BP77: =BP67/BP73 -> 0 | BQ77: 0 | BR77: 0 | BS77: 0 | BT77: 0 | BU77: 0 | BV77: 0 | BW77: 0 | BX77: 0 | BY77: 0 | BZ77: 0 | CA77: 0
B78: 4.13 | C78: Member Cost Sharing | D78: =D68/D73 -> 168.656 | E78: 0 | F78: 0 | G78: 0 | H78: 0 | I78: 0 | J78: 0 | K78: 0 | L78: 0 | M78: 0 | N78: 0 | O78: 0 | P78: 0 | Q78: 0 | R78: 0 | S78: 0 | T78: 0 | U78: 0 | V78: 0 | W78: 0 | X78: 0 | Y78: 0 | Z78: 0 | AA78: 0 | AB78: 0 | AC78: 0 | AD78: 0 | AE78: 0 | AF78: 0 | AG78: 0 | AH78: 0 | AI78: 0 | AJ78: =AJ68/AJ73 -> 0 | AK78: 0 | AL78: 0 | AM78: 0 | AN78: 0 | AO78: 0 | AP78: 0 | AQ78: 0 | AR78: 0 | AS78: 0 | AT78: 0 | AU78: 0 | AV78: 0 | AW78: 0 | AX78: 0 | AY78: 0 | AZ78: 0 | BA78: 0 | BB78: 0 | BC78: 0 | BD78: 0 | BE78: 0 | BF78: 0 | BG78: 0 | BH78: 0 | BI78: 0 | BJ78: 0 | BK78: 0 | BL78: 0 | BM78: 0 | BN78: 0 | BO78: 0 | BP78: =BP68/BP73 -> 0 | BQ78: 0 | BR78: 0 | BS78: 0 | BT78: 0 | BU78: 0 | BV78: 0 | BW78: 0 | BX78: 0 | BY78: 0 | BZ78: 0 | CA78: 0
B79: 4.14 | C79: Cost Sharing Reduction | D79: =D69/D73 -> 0 | E79: 0 | F79: 0 | G79: 0 | H79: 0 | I79: 0 | J79: 0 | K79: 0 | L79: 0 | M79: 0 | N79: 0 | O79: 0 | P79: 0 | Q79: 0 | R79: 0 | S79: 0 | T79: 0 | U79: 0 | V79: 0 | W79: 0 | X79: 0 | Y79: 0 | Z79: 0 | AA79: 0 | AB79: 0 | AC79: 0 | AD79: 0 | AE79: 0 | AF79: 0 | AG79: 0 | AH79: 0 | AI79: 0 | AJ79: =AJ69/AJ73 -> 0 | AK79: 0 | AL79: 0 | AM79: 0 | AN79: 0 | AO79: 0 | AP79: 0 | AQ79: 0 | AR79: 0 | AS79: 0 | AT79: 0 | AU79: 0 | AV79: 0 | AW79: 0 | AX79: 0 | AY79: 0 | AZ79: 0 | BA79: 0 | BB79: 0 | BC79: 0 | BD79: 0 | BE79: 0 | BF79: 0 | BG79: 0 | BH79: 0 | BI79: 0 | BJ79: 0 | BK79: 0 | BL79: 0 | BM79: 0 | BN79: 0 | BO79: 0 | BP79: =BP69/BP73 -> 0 | BQ79: 0 | BR79: 0 | BS79: 0 | BT79: 0 | BU79: 0 | BV79: 0 | BW79: 0 | BX79: 0 | BY79: 0 | BZ79: 0 | CA79: 0
B80: 4.15 | C80: Incurred Claims | D80: =D70/D73 -> 816.0703 | E80: 0 | F80: 0 | G80: 0 | H80: 0 | I80: 0 | J80: 0 | K80: 0 | L80: 0 | M80: 0 | N80: 0 | O80: 0 | P80: 0 | Q80: 0 | R80: 0 | S80: 0 | T80: 0 | U80: 0 | V80: 0 | W80: 0 | X80: 0 | Y80: 0 | Z80: 0 | AA80: 0 | AB80: 0 | AC80: 0 | AD80: 0 | AE80: 0 | AF80: 0 | AG80: 0 | AH80: 0 | AI80: 0 | AJ80: =AJ70/AJ73 -> 0 | AK80: 0 | AL80: 0 | AM80: 0 | AN80: 0 | AO80: 0 | AP80: 0 | AQ80: 0 | AR80: 0 | AS80: 0 | AT80: 0 | AU80: 0 | AV80: 0 | AW80: 0 | AX80: 0 | AY80: 0 | AZ80: 0 | BA80: 0 | BB80: 0 | BC80: 0 | BD80: 0 | BE80: 0 | BF80: 0 | BG80: 0 | BH80: 0 | BI80: 0 | BJ80: 0 | BK80: 0 | BL80: 0 | BM80: 0 | BN80: 0 | BO80: 0 | BP80: =BP70/BP73 -> 0 | BQ80: 0 | BR80: 0 | BS80: 0 | BT80: 0 | BU80: 0 | BV80: 0 | BW80: 0 | BX80: 0 | BY80: 0 | BZ80: 0 | CA80: 0
B81: 4.16 | C81: Risk Adjustment Transfer Amount | D81: =D71/D73 -> -0.42 | E81: 0 | F81: 0 | G81: 0 | H81: 0 | I81: 0 | J81: 0 | K81: 0 | L81: 0 | M81: 0 | N81: 0 | O81: 0 | P81: 0 | Q81: 0 | R81: 0 | S81: 0 | T81: 0 | U81: 0 | V81: 0 | W81: 0 | X81: 0 | Y81: 0 | Z81: 0 | AA81: 0 | AB81: 0 | AC81: 0 | AD81: 0 | AE81: 0 | AF81: 0 | AG81: 0 | AH81: 0 | AI81: 0 | AJ81: =AJ71/AJ73 -> 0 | AK81: 0 | AL81: 0 | AM81: 0 | AN81: 0 | AO81: 0 | AP81: 0 | AQ81: 0 | AR81: 0 | AS81: 0 | AT81: 0 | AU81: 0 | AV81: 0 | AW81: 0 | AX81: 0 | AY81: 0 | AZ81: 0 | BA81: 0 | BB81: 0 | BC81: 0 | BD81: 0 | BE81: 0 | BF81: 0 | BG81: 0 | BH81: 0 | BI81: 0 | BJ81: 0 | BK81: 0 | BL81: 0 | BM81: 0 | BN81: 0 | BO81: 0 | BP81: =BP71/BP73 -> 0 | BQ81: 0 | BR81: 0 | BS81: 0 | BT81: 0 | BU81: 0 | BV81: 0 | BW81: 0 | BX81: 0 | BY81: 0 | BZ81: 0 | CA81: 0
B82: 4.17 | C82: Premium | D82: =D72/D73 -> 941.9003 | E82: 0 | F82: 0 | G82: 0 | H82: 0 | I82: 0 | J82: 0 | K82: 0 | L82: 0 | M82: 0 | N82: 0 | O82: 0 | P82: 0 | Q82: 0 | R82: 0 | S82: 0 | T82: 0 | U82: 0 | V82: 0 | W82: 0 | X82: 0 | Y82: 0 | Z82: 0 | AA82: 0 | AB82: 0 | AC82: 0 | AD82: 0 | AE82: 0 | AF82: 0 | AG82: 0 | AH82: 0 | AI82: 0 | AJ82: =AJ72/AJ73 -> 0 | AK82: 0 | AL82: 0 | AM82: 0 | AN82: 0 | AO82: 0 | AP82: 0 | AQ82: 0 | AR82: 0 | AS82: 0 | AT82: 0 | AU82: 0 | AV82: 0 | AW82: 0 | AX82: 0 | AY82: 0 | AZ82: 0 | BA82: 0 | BB82: 0 | BC82: 0 | BD82: 0 | BE82: 0 | BF82: 0 | BG82: 0 | BH82: 0 | BI82: 0 | BJ82: 0 | BK82: 0 | BL82: 0 | BM82: 0 | BN82: 0 | BO82: 0 | BP82: =BP72/BP73 -> 0 | BQ82: 0 | BR82: 0 | BS82: 0 | BT82: 0 | BU82: 0 | BV82: 0 | BW82: 0 | BX82: 0 | BY82: 0 | BZ82: 0 | CA82: 0

Sheet Wksh 3 - Rating Areas
A1: Rating Area Data Collection [assistive technology users, please reference cell A2 for instructions] | C1: Specify the total number of Rating Areas in your State by selecting the Create Rating Areas button or Ctrl + Shift + R.
A2: Press TAB and directional arrow keys to read through the document. If macros are disabled, press and hold the ALT key and press the F, then I, and then N key. After that, select the Enable All Content option by pressing enter. (note that you can also press the C key to select "Enable All Content") Instructions can be found in cells C1 through C4. If screen reader fails to announce a cell after performing a dropdown selection, please press F2 and then ESC to force the screen reader to resume. | C2: Select only the Rating Areas you are offering plans within and add a factor for each area.
C3: To validate, select the Validate button or Ctrl + Shift + I.
C4: To finalize, select the Finalize button or Ctrl + Shift + F.
A5: Rating Area | B5: Rating Factor
A6: Rating Area 1 | B6: 1.0888
A7: Rating Area 2 | B7: 1.0656
A8: Rating Area 3 | B8: 0.9945
A9: Rating Area 4 | B9: 0.9979
A10: Rating Area 5 | B10: 0.9439
A11: Rating Area 6 | B11: 1.1345
A12: Rating Area 7 | B12: 1.0281
A13: Rating Area 8 | B13: 1.081

Sheet PlanTemplate (hidden)
A1: REBUILD | C1: Product-Plan Data Collection
C3: Company Legal Name: | D3: =IF('Wksh 1 - Market Experience'!C3<>"", 'Wksh 1 - Market Experience'!C3,"") ->  | N3: State: | O3: =IF('Wksh 1 - Market Experience'!E4="","",'Wksh 1 - Market Experience'!E4) -> 
C4: HIOS Issuer ID: | D4: =IF('Wksh 1 - Market Experience'!C4<>"", 'Wksh 1 - Market Experience'!C4,"") ->  | N4: Market: | O4: =IF('Wksh 1 - Market Experience'!E5="","",'Wksh 1 - Market Experience'!E5) -> 
C5: Effective Date of Rate Change(s): | D5: =IF('Wksh 1 - Market Experience'!#REF!<>"", 'Wksh 1 - Market Experience'!#REF!,"") -> 
C7: Product/Plan Level Calculations
B9: Field # | C9: Section I: General Product and Plan Information
B10: 1.1 | C10: Product Name | K10: Rating Area 1 | L10: AL | M10: New | N10: Platinum | O10: Yes
B11: 1.2 | C11: Product ID | K11: Rating Area 2 | L11: AK | M11: Renewing | N11: Gold | O11: No
B12: 1.3 | C12: Plan Name | K12: Rating Area 3 | L12: AZ | M12: Terminated | N12: Silver
B13: 1.4 | C13: Plan ID (Standard Component ID) | K13: Rating Area 4 | L13: AR | N13: Bronze
B14: 1.5 | C14: Metal | K14: Rating Area 5 | L14: CA | N14: Catastrophic
B15: 1.6 | C15: AV Metal Value | K15: Rating Area 6 | L15: CO | N15: Not Applicable
B16: 1.7 | C16: Plan Category | K16: Rating Area 7 | L16: CT
B17: 1.8 | C17: Plan Type | K17: Rating Area 8 | L17: DC
B18: 1.9 | C18: Exchange Plan? | L18: DE
B19: 1.10 | C19: Effective Date of Proposed Rates | L19: FL
B20: 1.11 | C20: Cumulative Rate Change % (over 12 mos prior) | L20: GA
B21: 1.12 | C21: Product Rate Increase % | L21: HI
B22: 1.13 | C22: Submission Level Rate Increase % | L22: ID
L23: IL
C24: Section II: Experience Period and Current Plan Level Information | L24: IN
B25: 2.1 | C25: Plan ID (Standard Component ID) | D25: Total | E25: =IF(E13<>"",E13,"") ->  | L25: IA
B26: 2.2 | C26: Allowed Claims | D26: =SUM(E26:XFD26) -> 0 | L26: KS
B27: 2.3 | C27: Reinsurance | D27: =SUM(E27:XFD27) -> 0 | L27: KY
B28: 2.4 | C28: Member Cost Sharing | D28: =SUM(E28:XFD28) -> 0 | L28: LA
B29: 2.5 | C29: Cost Sharing Reduction | D29: =SUM(E29:XFD29) -> 0 | L29: ME
B30: 2.6 | C30: Incurred Claims | D30: =D26-D27-D28-D29 -> 0 | E30: =E26-E27-E28-E29 -> 0 | L30: MD
B31: 2.7 | C31: Risk Adjustment Transfer Amount | D31: =SUM(E31:XFD31) -> 0 | L31: MA
B32: 2.8 | C32: Premium | D32: =SUM(E32:XFD32) -> 0 | L32: MI
B33: 2.9 | C33: Experience Period Member Months | D33: =SUM(E33:XFD33) -> 0 | L33: MN
B34: 2.10 | C34: Current Enrollment | D34: =SUM(E34:XFD34) -> 0 | L34: MS
B35: 2.11 | C35: Current Premium PMPM | D35: =SUMPRODUCT(E35:XFD35,E34:XFD34)/D34 ->  | L35: MO
B36: 2.12 | C36: Loss Ratio | D36: =D30/(D31+D32) ->  | E36: =E30/(E31+E32) ->  | L36: MT
C37: Per Member Per Month | L37: NE
B38: 2.13 | C38: Allowed Claims | D38: =D26/D33 ->  | E38: =E26/E33 ->  | L38: NV
B39: 2.14 | C39: Reinsurance | D39: =D27/D33 ->  | E39: =E27/E33 ->  | L39: NH
B40: 2.15 | C40: Member Cost Sharing | D40: =D28/D33 ->  | E40: =E28/E33 ->  | L40: NJ
B41: 2.16 | C41: Cost Sharing Reduction | D41: =D29/D33 ->  | E41: =E29/E33 ->  | L41: NM
B42: 2.17 | C42: Incurred Claims | D42: =D30/D33 ->  | E42: =E30/E33 ->  | L42: NY
B43: 2.18 | C43: Risk Adjustment Transfer Amount | D43: =D31/D33 ->  | E43: =E31/E33 ->  | L43: NC
B44: 2.19 | C44: Premium | D44: =D32/D33 ->  | E44: =E32/E33 ->  | L44: ND
L45: OH
C46: Section III: Plan Adjustment Factors | L46: OK
B47: 3.1 | C47: Plan ID (Standard Component ID) | E47: =IF(E13<>"",E13,"") ->  | L47: OR
B48: 3.2 | C48: Market Adjusted Index Rate | E48: ='Wksh 1 - Market Experience'!F46 -> 0 | L48: PA
B49: 3.3 | C49: AV and Cost Sharing Design of Plan | L49: RI
B50: 3.4 | C50: Provider Network Adjustment | L50: SC
B51: 3.5 | C51: Benefits in Addition to EHB | L51: SD
C52: Administrative Costs | L52: TN
B53: 3.6 | C53: Administrative Expense | L53: TX
B54: 3.7 | C54: Taxes and Fees | L54: UT
B55: 3.8 | C55: Profit & Risk Load | L55: VT
B56: 3.9 | C56: Catastrophic Adjustment | L56: VA
B57: 3.10 | C57: Plan Adjusted Index Rate | E57: =($E$48*PRODUCT(E49:E51)*E56)/(1-SUM(E53:E55)) -> 0 | L57: WA
L58: WV
B59: 3.11 | C59: Age Calibration Factor | E59: =IF(D59<>"", D59, "") ->  | L59: WI
B60: 3.12 | C60: Geographic Calibration Factor | E60: =IF(D60<>"", D60, "") ->  | L60: WY
B61: 3.13 | C61: Tobacco Calibration Factor | E61: =IF(D61<>"", D61, "") -> 
B62: 3.14 | C62: Calibrated Plan Adjusted Index Rate | E62: =E57*(PRODUCT($E$59:$E$61)) -> 0
C64: Section IV: Projected Plan Level Information
B65: 4.1 | C65: Plan ID (Standard Component ID) | D65: Total | E65: =IF(E13<>"",E13,"") -> 
B66: 4.2 | C66: Allowed Claims | D66: =SUM(E66:XFD66) -> 0
B67: 4.3 | C67: Reinsurance | D67: =SUM(E67:XFD67) -> 0
B68: 4.4 | C68: Member Cost Sharing | D68: =SUM(E68:XFD68) -> 0
B69: 4.5 | C69: Cost Sharing Reduction | D69: =SUM(E69:XFD69) -> 0
B70: 4.6 | C70: Incurred Claims | D70: =D66-D67-D68-D69 -> 0 | E70: =E66-E67-E68-E69 -> 0
B71: 4.7 | C71: Risk Adjustment Transfer Amount | D71: =SUM(E71:XFD71) -> 0
B72: 4.8 | C72: Premium | D72: =SUM(E72:XFD72) -> 0
B73: 4.9 | C73: Projected Member Months | D73: =SUM(E73:XFD73) -> 0
B74: 4.10 | C74: Loss Ratio | D74: =D70/(D71+D72) ->  | E74: =E70/(E71+E72) -> 
C75: Per Member Per Month
B76: 4.11 | C76: Allowed Claims | D76: =D66/D73 ->  | E76: =E66/E73 -> 
B77: 4.12 | C77: Reinsurance | D77: =D67/D73 ->  | E77: =E67/E73 -> 
B78: 4.13 | C78: Member Cost Sharing | D78: =D68/D73 ->  | E78: =E68/E73 -> 
B79: 4.14 | C79: Cost Sharing Reduction | D79: =D69/D73 ->  | E79: =E69/E73 -> 
B80: 4.15 | C80: Incurred Claims | D80: =D70/D73 ->  | E80: =E70/E73 -> 
B81: 4.16 | C81: Risk Adjustment Transfer Amount | D81: =D71/D73 ->  | E81: =E71/E73 -> 
B82: 4.17 | C82: Premium | D82: =D72/D73 ->  | E82: =E72/E73 -> 
